Workbook

Sheet Instructions
B2: =CONCATENATE(dms_Sector," ",dms_Segment," ", "Network Service Provider") -> Gas Transmission Network Service Provider
B3: =IF(dms_Model="Reset","Regulatory Proposal RIN Template","Annual Reporting RIN") -> Regulatory Proposal RIN Template
B4: =CONCATENATE("This template is to be used by ",dms_TradingNameFull," to fulfil its reporting obligations to the AER.") -> This template is to be used by APT Pipelines (NT) Pty Ltd t/a Amadeus to fulfil its reporting obligations to the AER.
B5: INSTRUCTIONS
B6: GENERAL | C6: Complete the Business & other details worksheet before entering data or values in any other worksheets. The Business & other details worksheet is linked to other worksheets within the workbook and automatically generates certain column headings and conditional formatting.
B8: CONFIDENTIAL INFORMATION | C8: Please use the macro at the top of each worksheet to identify confidential information in the confidential workbook.
C9: -Do this by selecting the cell or cells that contain confidential information and then run the Mark selection as CONFIDENTIAL macro. This will format the cells a specific colour that is identified by the AER's database which in turn marks that information as confidential. -To reverse this, select the cell or cells and run the Return selection to NON-CONFIDENTIAL macro.
B11: RESPONSES | C11: Please return four (4) files to the AER: 1. A confidential version which must contain a complete set of all responses with confidential information marked using the Mark selection CONFIDENTIAL macro and which has been completed using the locked template file provided by the AER. 2. An actual and an estimate version with confidential information marked using the Mark selection CONFIDENTIAL macro and which has been completed using the locked template file provided by the AER. 3. A public version with confidential information either removed completely or aggregated in some form together with writtten consent to disclose the public version of the response. Use the drop down box on the Business and other details worksheet to identify the file as either confidential ('consolidated') or public.
B13: AMENDMENTS | C13: If an NSP wishes to correct data previously submitted to the AER it should resubmit that data using the original completed submission as the starting point. Please make any necessary changes to the data. Data that is not being amended should be left unchanged. NSPs must identify the reason for the amendments in the Amendment Reason box on the Business and other details worksheet. NSPs may provide further details regarding any amendments in the Amendments worksheet. .
C14: NSP may use Amended Data macro to highlight cells that contain amended data. NB: if data is also CONFIDENTIAL, re-apply the Confidentiality macro after applying the Amended macro
C15: Please resubmit two (2) files - a confidential version and a public version of the amended submission to the AER
B17: UNITS OF MEASURE | C17: All amounts are to be unrounded and reported on a one for one basis: that is 1000 is to be entered as '1000'. Applicable units of measure may be identified in the table column headings or row descriptors.
B19: INPUT / NON-INPUT CELLS
D20: Yellow = Input cell (mandatory)
D21: Darker yellow = input cell (mandatory)
D22: Orange = input cell (if data available)
D23: Grey = Not applicable/No inputs required
D24: PLEASE DO NOT ENTER TEXT into cells that are to contain numeric data.
B27: NAVIGATION | C27: Many tables in the worksheets have been "grouped" to allow for easy navigation. To ungroup or group data use the outline symbols in the left margin (for Row groupings) or above the columns (for column groupings).

Sheet CONTENTS
B1: =INDEX(dms_Worksheet_List,MATCH(dms_Model,dms_Model_List)) -> REGULATORY REPORTING STATEMENT
B2: =INDEX(dms_TradingNameFull_List,MATCH(dms_TradingName,dms_TradingName_List)) -> APT Pipelines (NT) Pty Ltd t/a Amadeus
B3: =dms_Header_Span -> 2019-20 - 2025-26
C7: CONTENTS | D7: CONTENTS
C9: SUBMISSION | D9: Business & other details
D10: CPI series
C12: EXPENDITURE | D12: E1. Expenditure Summary
D13: E2. Repex
D14: E3. Expansion
D15: E6. Non-network
D16: E10. Overheads
D17: E13. Other capex
D18: E17. Step changes
D19: E20. Opex
C21: NETWORK | D21: N1. Demand
D22: N2. Network Characteristics
C24: SERVICES | D24: S1. User Numbers
D25: S10. Supply Quality
C27: FINANCIAL | D27: F2. Capex
D28: F3. Revenue
C30: ADMIN | D30: Additional disclosures

Sheet Business & other details
V1: =INDEX(dms_Worksheet_List,MATCH(dms_Model,dms_Model_List)) -> REGULATORY REPORTING STATEMENT
V2: =INDEX(dms_TradingNameFull_List,MATCH(dms_TradingName,dms_TradingName_List)) -> APT Pipelines (NT) Pty Ltd t/a Amadeus
V3: =dms_Header_Span -> 2019-20 - 2025-26
V4: BUSINESS & OTHER DETAILS
V6: INSTRUCTIONS
V7: Complete the following business details regulatory template before entering data or values in any other regulatory template. This regulatory template is linked to other cells within the spreadsheet and automatically generates column headings and conditional formatting to distinguish business specific input and non-input cells.
Q9: SUBMISSION PARTICULARS INPUT SHEET
V12: ENTITY DETAILS
V14: Business Name
V16: Short name | AL16: Amadeus
V17: ACN/ABN | AL17: =INDEX(dms_ABN_List,MATCH(dms_TradingName,dms_TradingName_List)) -> 39009737393
V21: Business Address | BQ21: Postal Address
V23: Address 1 | AL23: =INDEX(dms_Addr1_List,MATCH(dms_TradingName,dms_TradingName_List)) -> Level 19, HSBC Building | BI23: Address 1 | BQ23: =INDEX(dms_PAddr1_List,MATCH(dms_TradingName,dms_TradingName_List)) -> Level 19, HSBC Building
V24: Address 2 | AL24: =IF(ISBLANK(INDEX(dms_Addr2_List,MATCH(dms_TradingName,dms_TradingName_List))),"",(INDEX(dms_Addr2_List,MATCH(dms_TradingName,dms_TradingName_List)))) -> 580 George Street | BI24: Address 2 | BQ24: =IF(ISBLANK(INDEX(dms_PAddr2_List,MATCH(dms_TradingName,dms_TradingName_List))),"",(INDEX(dms_PAddr2_List,MATCH(dms_TradingName,dms_TradingName_List)))) -> 580 George Street
V25: Suburb | AL25: =INDEX(dms_Suburb_List,MATCH(dms_TradingName,dms_TradingName_List)) -> SYDNEY | BI25: Suburb | BQ25: =INDEX(dms_PSuburb_List,MATCH(dms_TradingName,dms_TradingName_List)) -> SYDNEY
V26: State | AL26: =INDEX(dms_State_List,MATCH(dms_TradingName,dms_TradingName_List)) -> NSW | AV26: Post code | BI26: State | BQ26: =INDEX(dms_PState_List,MATCH(dms_TradingName,dms_TradingName_List)) -> NSW | CA26: Post code
BA28: `
V30: Contact Names
V32: Name | AL32: John Williams | BI32: Name | BQ32: Nives Matosin
V33: Phone | AL33: 08 6189 4594 | BI33: Phone | BQ33: 02 9693 0081
V34: Email | AL34: john.williams@apa.com.au | BI34: Email | BQ34: nives.matosin@apa.com.au
Q39: REGULATORY CONTROL PERIODS
Z42: Forthcoming period | AL42: 2021-22 | AU42: =FRCP_y2 -> 2022-23 | BD42: =FRCP_y3 -> 2023-24 | BM42: =FRCP_y4 -> 2024-25 | BV42: =FRCP_y5 -> 2025-26
AL43: =FRCP_y6 -> 2026-27 | AU43: =FRCP_y7 -> 2027-28 | BD43: =FRCP_y8 -> 2028-29 | BM43: =FRCP_y9 -> 2029-30 | BV43: =FRCP_y10 -> 2030-31
AL44: =FRCP_y11 -> 2031-32 | AU44: =FRCP_y12 -> 2032-33 | BD44: =FRCP_y13 -> 2033-34 | BM44: =FRCP_y14 -> 2034-35 | BV44: =FRCP_y15 -> 2035-36
X46: RESETS | Z46: Current period | AL46: =CRCP_y1 -> 2016-17 | AU46: =CRCP_y2 -> 2017-18 | BD46: =CRCP_y3 -> 2018-19 | BM46: =CRCP_y4 -> 2019-20 | BV46: =CRCP_y5 -> 2020-21
AL47: =CRCP_y6 -> 2021-22 | AU47: =CRCP_y7 -> 2022-23 | BD47: =CRCP_y8 -> 2023-24 | BM47: =CRCP_y9 -> 2024-25 | BV47: =CRCP_y10 -> 2025-26
AL48: =CRCP_y11 -> 2026-27 | AU48: =CRCP_y12 -> 2027-28 | BD48: =CRCP_y13 -> 2028-29 | BM48: =CRCP_y14 -> 2029-30 | BV48: =CRCP_y15 -> 2030-31
Z50: Previous period | AL50: =PRCP_y1 -> 2011-12 | AU50: =PRCP_y2 -> 2012-13 | BD50: =PRCP_y3 -> 2013-14 | BM50: =PRCP_y4 -> 2014-15 | BV50: =PRCP_y5 -> 2015-16
AL51: =PRCP_y6 -> 2016-17 | AU51: =PRCP_y7 -> 2017-18 | BD51: =PRCP_y8 -> 2018-19 | BM51: =PRCP_y9 -> 2019-20 | BV51: =PRCP_y10 -> 2020-21
AL52: =PRCP_y11 -> 2021-22 | AU52: =PRCP_y12 -> 2022-23 | BD52: =PRCP_y13 -> 2023-24 | BM52: =PRCP_y14 -> 2024-25 | BV52: =PRCP_y15 -> 2025-26
Z54: Commencing year | AL54: 2021-22
X55: ANNUAL RINS
Z56: Final year | AL56: 2025-26
Q60: SUBMISSION DETAILS
Z62: RIN type | AL62: =INDIRECT(dms_Model) -> Regulatory Reporting (Reset)
Z64: Source | AL64: Regulatory proposal
X66: THIS FILE | Z66: Data Quality | AL66: Consolidated
Z68: Confidentiality Status | AL68: Public
Z70: Amended RIN Amendment Reason | AL70: .
Z74: Submission Date | AL74: 2020-07-01

Sheet CPI series
B1: =IF(dms_MultiYear_ResponseFlag="Yes","REGULATORY REPORTING STATEMENT - HISTORICAL INFORMATION",INDEX(dms_Worksheet_List,MATCH(dms_Model,dms_Model_List))) -> REGULATORY REPORTING STATEMENT
B2: =INDEX(dms_TradingNameFull_List,MATCH(dms_TradingName,dms_TradingName_List)) -> APT Pipelines (NT) Pty Ltd t/a Amadeus
B3: =dms_Header_Span -> 2019-20 - 2025-26
B4: CPI SERIES
B7: Name of CPI series | C7: All Groups Weighted Average Eight Capital Cities - June Quarter
C9: =CRCP_y1 -> 2016-17 | D9: =CRCP_y2 -> 2017-18 | E9: =CRCP_y3 -> 2018-19 | F9: =CRCP_y4 -> 2019-20 | G9: =CRCP_y5 -> 2020-21 | H9: =FRCP_y1 -> 2021-22 | I9: =FRCP_y2 -> 2022-23 | J9: =FRCP_y3 -> 2023-24 | K9: =FRCP_y4 -> 2024-25 | L9: =FRCP_y5 -> 2025-26
B10: Series data | C10: 110.7 | D10: 113 | E10: 114.8 | F10: 113.652 | G10: 116.77743

Sheet E1. Expenditure Summary
B1: =INDEX(dms_Worksheet_List,MATCH(dms_Model,dms_Model_List)) -> REGULATORY REPORTING STATEMENT
B2: =INDEX(dms_TradingNameFull_List,MATCH(dms_TradingName,dms_TradingName_List)) -> APT Pipelines (NT) Pty Ltd t/a Amadeus
B3: =dms_Header_Span -> 2019-20 - 2025-26
B4: E1. EXPENDITURE SUMMARY
B7: E1.1 - CAPEX
B8: E1.1.1 - REFERENCE SERVICES
C9: EXPENDITURE
C10: =CONCATENATE("$0's, real ",dms_DollarReal) -> $0's, real June 2021
C11: =CRCP_y4 -> 2019-20 | D11: =CRCP_y5 -> 2020-21 | E11: =FRCP_y1 -> 2021-22 | F11: =FRCP_y2 -> 2022-23 | G11: =FRCP_y3 -> 2023-24 | H11: =FRCP_y4 -> 2024-25 | I11: =FRCP_y5 -> 2025-26
B12: Replacement | C12: 3966587.302 | D12: 2599108.063 | E12: 1440025.653 | F12: 1469310.887 | G12: 1795487.805 | H12: 1567264.946 | I12: 1301678.167
B13: Expansion | C13: 0 | D13: 0 | E13: 0 | F13: 0 | G13: 0 | H13: 0 | I13: 0
B14: Non-network | C14: 5908713.749 | D14: 1711611 | E14: 797770.1723 | F14: 403934.2645 | G14: 464524.4041 | H14: 762425.9242 | I14: 1050229.088
B15: Capitalised network overheads
B16: Capitalised corporate overheads
B17: Other capex
B18: Capital contributions included in the above
B19: Total (less capital contributions) | C19: =SUM(C12:C17)-C18 -> 9875301.051 | D19: 4310719.063 | E19: 2237795.825 | F19: 1873245.151 | G19: 2260012.21 | H19: 2329690.87 | I19: 2351907.255
B21: E1.1.3 - OTHER SERVICES PROVIDED AS A COVERED PIPELINE
B22: Replacement
B23: Expansion
B24: Non-network
B25: Capitalised network overheads
B26: Capitalised corporate overheads
B27: Other capex
B28: Capital contributions included in the above
B29: Total (less capital contributions) | C29: =SUM(C22:C27)-C28 -> 0 | D29: 0 | E29: 0 | F29: 0 | G29: 0 | H29: 0 | I29: 0
B31: E1.1.5 - ALL CAPEX
B32: Replacement | C32: 3966587.302 | D32: 2599108.063 | E32: 1440025.653 | F32: 1469310.887 | G32: 1795487.805 | H32: 1567264.946 | I32: 1301678.167
B33: Expansion | C33: 0 | D33: 0 | E33: 0 | F33: 0 | G33: 0 | H33: 0 | I33: 0
B34: Non-network | C34: 5908713.749 | D34: 1711611 | E34: 797770.1723 | F34: 403934.2645 | G34: 464524.4041 | H34: 762425.9242 | I34: 1050229.088
B35: Capitalised network overheads
B36: Capitalised corporate overheads
B37: Other capex
B38: Capital contributions included in the above
B39: Total (less capital contributions) | C39: =SUM(C32:C37)-C38 -> 9875301.051 | D39: 4310719.063 | E39: 2237795.825 | F39: 1873245.151 | G39: 2260012.21 | H39: 2329690.87 | I39: 2351907.255
B42: E1.2 - OPEX
B43: E1.2.1 - REFERENCE SERVICES
C44: EXPENDITURE
C45: =CONCATENATE("$0's, real ",dms_DollarReal) -> $0's, real June 2021
C46: =CRCP_y4 -> 2019-20 | D46: =CRCP_y5 -> 2020-21 | E46: =FRCP_y1 -> 2021-22 | F46: =FRCP_y2 -> 2022-23 | G46: =FRCP_y3 -> 2023-24 | H46: =FRCP_y4 -> 2024-25 | I46: =FRCP_y5 -> 2025-26
B47: Repairs and maintenance | C47: 9870633.491 | D47: 8036080.381 | E47: 7889382.401 | F47: 8024884.59 | G47: 8011967.894 | H47: 7743365.135 | I47: 7740720.942
B48: Other operating | C48: 1679366.509 | D48: 1679366.509 | E48: 1637935.292 | F48: 1637935.292 | G48: 1637935.292 | H48: 1637935.292 | I48: 1637935.292
B49: Debt raising | C49: 66245.02344 | D49: 65293.26694 | E49: 60904.1223 | F49: 59939.41397 | G49: 58735.71882 | H49: 57681.51689 | I49: 56614.51243
B50: Equity raising
B51: Total | C51: =SUM(C47:C50) -> 11616245.02 | D51: 9780740.157 | E51: 9588221.816 | F51: 9722759.296 | G51: 9708638.905 | H51: 9438981.944 | I51: 9435270.746
B53: E1.2.3 - OTHER SERVICES PROVIDED AS A COVERED PIPELINE
B54: Repairs and maintenance
B55: Other operating
B56: Debt raising
B57: Equity raising
B58: Total | C58: =SUM(C54:C57) -> 0 | D58: 0 | E58: 0 | F58: 0 | G58: 0 | H58: 0 | I58: 0
B60: E1.2.5 - ALL OPEX
B61: Repairs and maintenance | C61: 9870633.491 | D61: 8036080.381 | E61: 7889382.401 | F61: 8024884.59 | G61: 8011967.894 | H61: 7743365.135 | I61: 7740720.942
B62: Other operating | C62: 1679366.509 | D62: 1679366.509 | E62: 1637935.292 | F62: 1637935.292 | G62: 1637935.292 | H62: 1637935.292 | I62: 1637935.292
B63: Debt raising | C63: 66245.02344 | D63: 65293.26694 | E63: 60904.1223 | F63: 59939.41397 | G63: 58735.71882 | H63: 57681.51689 | I63: 56614.51243
B64: Equity raising
B65: Total | C65: =SUM(C61:C64) -> 11616245.02 | D65: 9780740.157 | E65: 9588221.816 | F65: 9722759.296 | G65: 9708638.905 | H65: 9438981.944 | I65: 9435270.746
B68: E1.3 - CAPCONS
B69: E1.3.1 - REFERENCE SERVICES
C70: EXPENDITURE
C71: =CONCATENATE("$0's, real ",dms_DollarReal) -> $0's, real June 2021
C72: =CRCP_y4 -> 2019-20 | D72: =CRCP_y5 -> 2020-21 | E72: =FRCP_y1 -> 2021-22 | F72: =FRCP_y2 -> 2022-23 | G72: =FRCP_y3 -> 2023-24 | H72: =FRCP_y4 -> 2024-25 | I72: =FRCP_y5 -> 2025-26
B73: Replacement
B74: Expansion
B75: Non-network
B76: Capitalised network overheads
B77: Capitalised corporate overheads
B78: Other capex
B79: Total | C79: =SUM(C73:C78) -> 0 | D79: 0 | E79: 0 | F79: 0 | G79: 0 | H79: 0 | I79: 0
B81: E1.3.3 - OTHER SERVICES PROVIDED AS A COVERED PIPELINE
C82: EXPENDITURE
C83: =CONCATENATE("$0's, real ",dms_DollarReal) -> $0's, real June 2021
C84: =CRCP_y4 -> 2019-20 | D84: =CRCP_y5 -> 2020-21 | E84: =FRCP_y1 -> 2021-22 | F84: =FRCP_y2 -> 2022-23 | G84: =FRCP_y3 -> 2023-24 | H84: =FRCP_y4 -> 2024-25 | I84: =FRCP_y5 -> 2025-26
B85: Replacement
B86: Expansion
B87: Non-network
B88: Capitalised network overheads
B89: Capitalised corporate overheads
B90: Other capex
B91: Total | C91: =SUM(C85:C90) -> 0 | D91: 0 | E91: 0 | F91: 0 | G91: 0 | H91: 0 | I91: 0
B93: E1.3.5 - ALL CAPCONS
C94: EXPENDITURE
C95: =CONCATENATE("$0's, real ",dms_DollarReal) -> $0's, real June 2021
C96: =CRCP_y4 -> 2019-20 | D96: =CRCP_y5 -> 2020-21 | E96: =FRCP_y1 -> 2021-22 | F96: =FRCP_y2 -> 2022-23 | G96: =FRCP_y3 -> 2023-24 | H96: =FRCP_y4 -> 2024-25 | I96: =FRCP_y5 -> 2025-26
B97: Replacement
B98: Expansion
B99: Non-network
B100: Capitalised network overheads
B101: Capitalised corporate overheads
B102: Other capex
B103: Total | C103: =SUM(C97:C102) -> 0 | D103: 0 | E103: 0 | F103: 0 | G103: 0 | H103: 0 | I103: 0
B106: E1.4 - CAPITALISED OVERHEADS
B107: E1.4.1 - REFERENCE SERVICES
C108: EXPENDITURE
C109: =CONCATENATE("$0's, real ",dms_DollarReal) -> $0's, real June 2021
C110: =CRCP_y4 -> 2019-20 | D110: =CRCP_y5 -> 2020-21 | E110: =FRCP_y1 -> 2021-22 | F110: =FRCP_y2 -> 2022-23 | G110: =FRCP_y3 -> 2023-24 | H110: =FRCP_y4 -> 2024-25 | I110: =FRCP_y5 -> 2025-26
B111: Replacement
B112: Expansion
B113: Non-network
B114: Other capex
B115: Total | C115: =SUM(C111:C114) -> 0 | D115: =SUM(D111:D114) -> 0 | E115: 0 | F115: 0 | G115: 0 | H115: 0 | I115: 0
B118: E1.4.3 - OTHER SERVICES PROVIDED AS A COVERED PIPELINE
C119: EXPENDITURE
C120: =CONCATENATE("$0's, real ",dms_DollarReal) -> $0's, real June 2021
C121: =CRCP_y4 -> 2019-20 | D121: =CRCP_y5 -> 2020-21 | E121: =FRCP_y1 -> 2021-22 | F121: =FRCP_y2 -> 2022-23 | G121: =FRCP_y3 -> 2023-24 | H121: =FRCP_y4 -> 2024-25 | I121: =FRCP_y5 -> 2025-26
B122: Replacement
B123: Expansion
B124: Non-network
B125: Other capex
B126: Total | C126: =SUM(C122:C125) -> 0 | D126: 0 | E126: 0 | F126: 0 | G126: 0 | H126: 0 | I126: 0
B128: E1.4.5 - ALL CAPITALISED OVERHEADS
C129: EXPENDITURE
C130: =CONCATENATE("$0's, real ",dms_DollarReal) -> $0's, real June 2021
C131: =CRCP_y4 -> 2019-20 | D131: =CRCP_y5 -> 2020-21 | E131: =FRCP_y1 -> 2021-22 | F131: =FRCP_y2 -> 2022-23 | G131: =FRCP_y3 -> 2023-24 | H131: =FRCP_y4 -> 2024-25 | I131: =FRCP_y5 -> 2025-26
B132: Replacement
B133: Expansion
B134: Non-network
B135: Other capex
B136: Total | C136: =SUM(C132:C135) -> 0 | D136: 0 | E136: 0 | F136: 0 | G136: 0 | H136: 0 | I136: 0

Sheet E2. Repex
B1: REGULATORY REPORTING STATEMENT
B2: =INDEX(dms_TradingNameFull_List,MATCH(dms_TradingName,dms_TradingName_List)) -> APT Pipelines (NT) Pty Ltd t/a Amadeus
B3: =dms_Header_Span -> 2019-20 - 2025-26
B4: E2. REPLACMENT CAPITAL EXPENDITURE
B7: E2.1 - CAPEX - BY DRIVER
C8: =CONCATENATE("EXPENDITURE Forecast ($0's real, ",dms_DollarReal,")") -> EXPENDITURE Forecast ($0's real, June 2021)
C9: =CRCP_y4 -> 2019-20 | D9: =CRCP_y5 -> 2020-21 | E9: =FRCP_y1 -> 2021-22 | F9: =FRCP_y2 -> 2022-23 | G9: =FRCP_y3 -> 2023-24 | H9: =FRCP_y4 -> 2024-25 | I9: =FRCP_y5 -> 2025-26
B10: Direct labour | C10: 624302 | D10: 409074 | E10: 226646 | F10: 231255 | G10: 282592 | H10: 246672 | I10: 204871
B11: Direct materials | C11: 737360 | D11: 483156 | E11: 267690 | F11: 273134 | G11: 333768 | H11: 291343 | I11: 241973
B12: Direct contractor | C12: 2492830 | D12: 1633428 | E12: 904994 | F12: 923399 | G12: 1128387 | H12: 984959 | I12: 818049
B13: Other direct expenditure | C13: 112096 | D13: 73451 | E13: 40695 | F13: 41523 | G13: 50740 | H13: 44291 | I13: 36785
B14: Overheads
B15: Capital contributions included in the above
B16: Total (less capital contributions) | C16: =SUM(C10:C14)-C15 -> 3966588 | D16: =SUM(D10:D14)-D15 -> 2599109 | E16: 1440025 | F16: 1469311 | G16: 1795487 | H16: 1567265 | I16: 1301678
B18: E2.2 - CAPEX - BY PROJECT
B19: E2.2.1 - EXPENDITURE
C20: =CONCATENATE("EXPENDITURE Forecast ($0's real, ",dms_DollarReal,")") -> EXPENDITURE Forecast ($0's real, June 2021)
B21: Project Name | C21: =CRCP_y4 -> 2019-20 | D21: =CRCP_y5 -> 2020-21 | E21: =FRCP_y1 -> 2021-22 | F21: =FRCP_y2 -> 2022-23 | G21: =FRCP_y3 -> 2023-24 | H21: =FRCP_y4 -> 2024-25 | I21: =FRCP_y5 -> 2025-26
B22: Cathodic protection lightning protection upgrade | C22: 16940 | D22: 0 | E22: 0 | F22: 0 | G22: 0 | H22: 0 | I22: 0
B23: Gas chromatograph upgrade | C23: 29236 | D23: 0 | E23: 0 | F23: 0 | G23: 0 | H23: 0 | I23: 0
B24: Heater control upgrade | C24: 9938 | D24: 80787 | E24: 0 | F24: 0 | G24: 0 | H24: 0 | I24: 0
B25: Human-machine interface upgrade | C25: 0 | D25: 28275 | E25: 0 | F25: 0 | G25: 0 | H25: 0 | I25: 0
B26: Katherine pressure control valve upgrade | C26: 0 | D26: 30295 | E26: 0 | F26: 0 | G26: 0 | H26: 0 | I26: 0
B27: Lightning mitigation | C27: 55353 | D27: 0 | E27: 0 | F27: 0 | G27: 0 | H27: 0 | I27: 0
B28: Moisture analyser upgrade | C28: 97717 | D28: 0 | E28: 0 | F28: 0 | G28: 0 | H28: 0 | I28: 0
B29: Pig receiver presssure equalisation | C29: 30326 | D29: 25246 | E29: 0 | F29: 0 | G29: 0 | H29: 0 | I29: 0
B30: SCADA hardware | C30: 0 | D30: 631597 | E30: 0 | F30: 0 | G30: 0 | H30: 0 | I30: 0
B31: Security system upgrade (Darwin City Gate) | C31: 0 | D31: 40393 | E31: 0 | F31: 0 | G31: 0 | H31: 0 | I31: 0
B32: Single loop controller upgrades | C32: 15148 | D32: 121180 | E32: 0 | F32: 0 | G32: 0 | H32: 0 | I32: 0
B33: Site hut upgrades | C33: 31305 | D33: 0 | E33: 0 | F33: 0 | G33: 0 | H33: 0 | I33: 0
B34: Slops tank ugrades | C34: 36692 | D34: 0 | E34: 0 | F34: 0 | G34: 0 | H34: 0 | I34: 0
B35: Warrego pressure regulation | C35: 2176641 | D35: 41694 | E35: 0 | F35: 0 | G35: 0 | H35: 0 | I35: 0
B36: New cathodic protection sites | C36: 425906 | D36: 424131 | E36: 424131 | F36: 424131 | G36: 550360 | H36: 424131 | I36: 424131
B37: Replacement cathodic protection ground beds | C37: 69726 | D37: 0 | E37: 70688 | F37: 0 | G37: 70688 | H37: 0 | I37: 70688
B38: Cathodic protection unit upgrade program | C38: 77305 | D38: 50492 | E38: 25246 | F38: 50492 | G38: 50492 | H38: 60590 | I38: 60590
B39: Solar panel upgrades | C39: 115121 | D39: 55541 | E39: 70688 | F39: 25246 | G39: 56551 | H39: 0 | I39: 0
B40: Battery charger upgrade program | C40: 0 | D40: 0 | E40: 26256 | F40: 100984 | G40: 20197 | H40: 0 | I40: 0
B41: Battery replacements | C41: 12623 | D41: 0 | E41: 30295 | F41: 0 | G41: 67659 | H41: 87856 | I41: 135318
B42: Hazardous area equipment upgrades | C42: 243089 | D42: 252459 | E42: 10098 | F42: 20197 | G42: 252459 | H42: 232262 | I42: 0
B43: Remote terminal unit replacement | C43: 49612 | D43: 75738 | E43: 151475 | F43: 217115 | G43: 151475 | H43: 151475 | I43: 151475
B44: Heat shrink sleeve upgrade program | C44: 252791 | D44: 252459 | E44: 257508 | F44: 257508 | G44: 257508 | H44: 257508 | I44: 257508
B45: MLV actuators upgrade program | C45: 22216 | D45: 274675 | E45: 151475 | F45: 151475 | G45: 75738 | H45: 151475 | I45: 0
B46: Wizard controller upgrade program | C46: 27230 | D46: 12118 | E46: 20197 | F46: 20197 | G46: 40393 | H46: 0 | I46: 0
B47: Miscellaneous capital | C47: 171672 | D47: 201967 | E47: 201967 | F47: 201967 | G47: 201967 | H47: 201967 | I47: 201967
B72: Aggregate of other projects with total expenditure of less than $500,000
B73: Total | C73: =SUM(C22:C72) -> 3966587 | D73: 2599047 | E73: 1440024 | F73: 1469312 | G73: 1795487 | H73: 1567264 | I73: 1301677
B75: E2.2.2 - VOLUMES
C76: LENGTH
C77: 0s, metres
C78: =CRCP_y4 -> 2019-20 | D78: =CRCP_y5 -> 2020-21 | E78: =FRCP_y1 -> 2021-22 | F78: =FRCP_y2 -> 2022-23 | G78: =FRCP_y3 -> 2023-24 | H78: =FRCP_y4 -> 2024-25 | I78: =FRCP_y5 -> 2025-26
B79: =IF(ISBLANK(B22),"",B22) -> Cathodic protection lightning protection upgrade
B80: =IF(ISBLANK(B23),"",B23) -> Gas chromatograph upgrade
B81: Heater control upgrade
B82: =IF(ISBLANK(B25),"",B25) -> Human-machine interface upgrade
B83: Katherine pressure control valve upgrade
B84: Lightning mitigation
B85: Moisture analyser upgrade
B86: Pig receiver presssure equalisation
B87: SCADA hardware
B88: Security system upgrade (Darwin City Gate)
B89: Single loop controller upgrades
B90: Site hut upgrades
B91: Slops tank ugrades
B92: Warrego pressure regulation
B93: New cathodic protection sites
B94: Replacement cathodic protection ground beds
B95: Cathodic protection unit upgrade program
B96: Solar panel upgrades
B97: Battery charger upgrade program
B98: Battery replacements
B99: Hazardous area equipment upgrades
B100: Remote terminal unit replacement
B101: Heat shrink sleeve upgrade program
B102: MLV actuators upgrade program
B103: Wizard controller upgrade program
B104: Miscellaneous capital
B129: Aggregate of other projects with total expenditure of less than $500,000
B130: Total | C130: =SUM(C79:C129) -> 0 | D130: 0 | E130: 0 | F130: 0 | G130: 0 | H130: 0 | I130: 0

Sheet E3. Expansion
B1: =IF(dms_MultiYear_ResponseFlag="Yes","REGULATORY REPORTING STATEMENT - HISTORICAL INFORMATION",INDEX(dms_Worksheet_List,MATCH(dms_Model,dms_Model_List))) -> REGULATORY REPORTING STATEMENT
B2: =INDEX(dms_TradingNameFull_List,MATCH(dms_TradingName,dms_TradingName_List)) -> APT Pipelines (NT) Pty Ltd t/a Amadeus
B3: =dms_Header_Span -> 2019-20 - 2025-26
B4: E3. EXPANSION CAPITAL EXPENDITURE
B6: E3.1 - CAPEX - BY DRIVER
C7: =CONCATENATE("EXPENDITURE Forecast ($0's real, ",dms_DollarReal,")") -> EXPENDITURE Forecast ($0's real, June 2021)
C8: =CRCP_y4 -> 2019-20 | D8: =CRCP_y5 -> 2020-21 | E8: =FRCP_y1 -> 2021-22 | F8: =FRCP_y2 -> 2022-23 | G8: =FRCP_y3 -> 2023-24 | H8: =FRCP_y4 -> 2024-25 | I8: =FRCP_y5 -> 2025-26
B9: Direct labour
B10: Direct materials
B11: Direct contractor
B12: Other direct expenditure
B13: Overheads
B14: Capital contributions included in the above
B15: Total (less capital contributions) | C15: =SUM(C9:C13)-C14 -> 0 | D15: =SUM(D9:D13)-D14 -> 0 | E15: 0 | F15: 0 | G15: 0 | H15: 0 | I15: 0
B17: E3.2 - CAPEX - BY PROJECT
B18: E3.2.1 - EXPENDITURE
C19: =CONCATENATE("EXPENDITURE Forecast ($0's real, ",dms_DollarReal,")") -> EXPENDITURE Forecast ($0's real, June 2021)
B20: Project Name | C20: =CRCP_y4 -> 2019-20 | D20: =CRCP_y5 -> 2020-21 | E20: =FRCP_y1 -> 2021-22 | F20: =FRCP_y2 -> 2022-23 | G20: =FRCP_y3 -> 2023-24 | H20: =FRCP_y4 -> 2024-25 | I20: =FRCP_y5 -> 2025-26
B41: Aggregate of other projects with total expenditure of less than $500,000
B42: Total | C42: =SUM(C21:C41) -> 0 | D42: 0 | E42: 0 | F42: 0 | G42: 0 | H42: 0 | I42: 0
B44: E3.2.2 - VOLUMES
C45: LENGTH
C46: 0s, metres
C47: =CRCP_y4 -> 2019-20 | D47: =CRCP_y5 -> 2020-21 | E47: =FRCP_y1 -> 2021-22 | F47: =FRCP_y2 -> 2022-23 | G47: =FRCP_y3 -> 2023-24 | H47: =FRCP_y4 -> 2024-25 | I47: =FRCP_y5 -> 2025-26
B48: =IF(ISBLANK(B21),"",B21) -> 
B49: =IF(ISBLANK(B22),"",B22) -> 
B68: Aggregate of other projects with total expenditure of less than $500,000
B69: Total | C69: =SUM(C48:C68) -> 0 | D69: 0 | E69: 0 | F69: 0 | G69: 0 | H69: 0 | I69: 0

Sheet E6. Non-network
B1: =IF(dms_MultiYear_ResponseFlag="Yes","REGULATORY REPORTING STATEMENT - HISTORICAL INFORMATION",INDEX(dms_Worksheet_List,MATCH(dms_Model,dms_Model_List))) -> REGULATORY REPORTING STATEMENT
B2: =INDEX(dms_TradingNameFull_List,MATCH(dms_TradingName,dms_TradingName_List)) -> APT Pipelines (NT) Pty Ltd t/a Amadeus
B3: =dms_Header_Span -> 2019-20 - 2025-26
B4: E6. NON-NETWORK
B6: E6.1 - NON-NETWORK
B7: E6.1.1 - CAPEX - BY DRIVER
C8: =CONCATENATE("EXPENDITURE Forecast ($0's real, ",dms_DollarReal,")") -> EXPENDITURE Forecast ($0's real, June 2021)
C9: =CRCP_y4 -> 2019-20 | D9: =CRCP_y5 -> 2020-21 | E9: =FRCP_y1 -> 2021-22 | F9: =FRCP_y2 -> 2022-23 | G9: =FRCP_y3 -> 2023-24 | H9: =FRCP_y4 -> 2024-25 | I9: =FRCP_y5 -> 2025-26
B10: Direct labour | C10: 1515102 | D10: 438888 | E10: 204563 | F10: 103576 | G10: 119113 | H10: 195500 | I10: 269298
B11: Direct materials | C11: 35039 | D11: 10150 | E11: 4731 | F11: 2395 | G11: 2755 | H11: 4521 | I11: 6228
B12: Direct contractor | C12: 804102 | D12: 232929 | E12: 108567 | F12: 54970 | G12: 63216 | H12: 103757 | I12: 142923
B13: Other direct expenditure | C13: 3554471 | D13: 1029644 | E13: 479910 | F13: 242992 | G13: 279441 | H13: 458648 | I13: 631780
B14: Overheads
B15: Capital contributions included in the above
B16: Total (less capital contributions) | C16: =SUM(C10:C14)-C15 -> 5908714 | D16: =SUM(D10:D14)-D15 -> 1711611 | E16: 797771 | F16: 403933 | G16: 464525 | H16: 762426 | I16: 1050229
B19: E6.1.2 - CAPEX BY PROJECT
C20: =CONCATENATE("EXPENDITURE Forecast ($0's real, ",dms_DollarReal,")") -> EXPENDITURE Forecast ($0's real, June 2021)
C21: =CRCP_y4 -> 2019-20 | D21: =CRCP_y5 -> 2020-21 | E21: =FRCP_y1 -> 2021-22 | F21: =FRCP_y2 -> 2022-23 | G21: =FRCP_y3 -> 2023-24 | H21: =FRCP_y4 -> 2024-25 | I21: =FRCP_y5 -> 2025-26
B22: Capitalised value of right-of-use leases | C22: 4074952 | D22: 0 | E22: 0 | F22: 0 | G22: 0 | H22: 0 | I22: 0
B23: Corporate CAPEX | C23: 979506 | D23: 979506 | E23: 0 | F23: 0 | G23: 0 | H23: 0 | I23: 0
B24: Palmerston depot facilities | C24: 384682 | D24: 0 | E24: 0 | F24: 0 | G24: 0 | H24: 0 | I24: 0
B25: Motor vehicles | C25: 469574 | D25: 732105 | E25: 797770 | F25: 403934 | G25: 464524 | H25: 762426 | I25: 1050229
B37: Aggregate of other projects with total expenditure of less than $500,000
B38: Total | C38: =SUM(C22:C37) -> 5908714 | D38: =SUM(D22:D37) -> 1711611 | E38: 797770 | F38: 403934 | G38: 464524 | H38: 762426 | I38: 1050229

Sheet E10. Overheads
B1: =IF(dms_MultiYear_ResponseFlag="Yes","REGULATORY REPORTING STATEMENT - HISTORICAL INFORMATION",INDEX(dms_Worksheet_List,MATCH(dms_Model,dms_Model_List))) -> REGULATORY REPORTING STATEMENT
B2: =INDEX(dms_TradingNameFull_List,MATCH(dms_TradingName,dms_TradingName_List)) -> APT Pipelines (NT) Pty Ltd t/a Amadeus
B3: =dms_Header_Span -> 2019-20 - 2025-26
B4: E10. OVERHEADS
B6: E10.1 - NETWORK
C7: =CONCATENATE("EXPENDITURE Forecast ($0's real, ",dms_DollarReal,")") -> EXPENDITURE Forecast ($0's real, June 2021)
C8: =CRCP_y4 -> 2019-20 | D8: =CRCP_y5 -> 2020-21 | E8: =FRCP_y1 -> 2021-22 | F8: =FRCP_y2 -> 2022-23 | G8: =FRCP_y3 -> 2023-24 | H8: =FRCP_y4 -> 2024-25 | I8: =FRCP_y5 -> 2025-26
B9: E10.1.1 - OPEX
B10: Reference services | C10: 0 | D10: 0 | E10: 0 | F10: 0 | G10: 0 | H10: 0 | I10: 0
B11: Other services provided as a covered pipeline | C11: 0 | D11: 0 | E11: 0 | F11: 0 | G11: 0 | H11: 0 | I11: 0
B12: All opex | C12: 0 | D12: 0 | E12: 0 | F12: 0 | G12: 0 | H12: 0 | I12: 0
B13: E10.1.2 - CAPEX
B14: Reference services | C14: 0 | D14: 0 | E14: 0 | F14: 0 | G14: 0 | H14: 0 | I14: 0
B15: Other services provided as a covered pipeline | C15: 0 | D15: 0 | E15: 0 | F15: 0 | G15: 0 | H15: 0 | I15: 0
B16: All capex | C16: 0 | D16: 0 | E16: 0 | F16: 0 | G16: 0 | H16: 0 | I16: 0
B20: E10.2 - CORPORATE
C21: =CONCATENATE("EXPENDITURE Forecast ($0's real, ",dms_DollarReal,")") -> EXPENDITURE Forecast ($0's real, June 2021)
C22: =CRCP_y4 -> 2019-20 | D22: =CRCP_y5 -> 2020-21 | E22: =FRCP_y1 -> 2021-22 | F22: =FRCP_y2 -> 2022-23 | G22: =FRCP_y3 -> 2023-24 | H22: =FRCP_y4 -> 2024-25 | I22: =FRCP_y5 -> 2025-26
B23: E10.2.1 - OPEX
B24: Reference services | C24: 0 | D24: 0 | E24: 0 | F24: 0 | G24: 0 | H24: 0 | I24: 0
B25: Other services provided as a covered pipeline | C25: 0 | D25: 0 | E25: 0 | F25: 0 | G25: 0 | H25: 0 | I25: 0
B26: All opex | C26: 0 | D26: 0 | E26: 0 | F26: 0 | G26: 0 | H26: 0 | I26: 0
B27: E10.2.2 - CAPEX
B28: Reference services | C28: 0 | D28: 0 | E28: 0 | F28: 0 | G28: 0 | H28: 0 | I28: 0
B29: Other services provided as a covered pipeline | C29: 0 | D29: 0 | E29: 0 | F29: 0 | G29: 0 | H29: 0 | I29: 0
B30: All capex | C30: 0 | D30: 0 | E30: 0 | F30: 0 | G30: 0 | H30: 0 | I30: 0

Sheet E11. Labour
B1: =IF(dms_MultiYear_ResponseFlag="Yes","REGULATORY REPORTING STATEMENT - HISTORICAL INFORMATION",INDEX(dms_Worksheet_List,MATCH(dms_Model,dms_Model_List))) -> REGULATORY REPORTING STATEMENT
B2: =INDEX(dms_TradingNameFull_List,MATCH(dms_TradingName,dms_TradingName_List)) -> APT Pipelines (NT) Pty Ltd t/a Amadeus
B3: =dms_Header_Span -> 2019-20 - 2025-26
B4: E11. LABOUR
B6: Tables E11.1 and E11.2 intentionlly omitted.
B8: E11.3 - LABOUR / NON-LABOUR EXPENDITURE SPLIT
C9: EXPENDITURE
C10: $0's, nominal
C11: =CRCP_y4 -> 2019-20 | D11: =CRCP_y5 -> 2020-21 | E11: =FRCP_y1 -> 2021-22 | F11: =FRCP_y2 -> 2022-23 | G11: =FRCP_y3 -> 2023-24 | H11: =FRCP_y4 -> 2024-25 | I11: =FRCP_y5 -> 2025-26
B12: E11.3.1 - OPEX
B13: In-house labour expenditure | C13: 7003575.397 | D13: 5896927.19 | E13: 5780855.541 | F13: 5861969.824 | G13: 5853456.468 | H13: 5690877.007 | I13: 5688639.481
B14: Labour expenditure outsourced to related parties
B15: Labour expenditure outsourced to unrelated parties
B16: Non-labour expenditure | C16: 4612669.627 | D16: 3883812.967 | E16: 3807366.275 | F16: 3860789.472 | G16: 3855182.437 | H16: 3748104.937 | I16: 3746631.265
B17: Total | C17: =SUM(C13:C16) -> 11616245.02 | D17: =SUM(D13:D16) -> 9780740.157 | E17: 9588221.816 | F17: 9722759.296 | G17: 9708638.905 | H17: 9438981.944 | I17: 9435270.746
B19: E11.3.2 - CAPEX
B20: In-house labour expenditure | C20: 1338023.937 | D20: 584067.7934 | E20: 303203.352 | F20: 253809.6652 | G20: 306213.4936 | H20: 315654.3922 | I20: 318664.5338
B21: Labour expenditure outsourced to related parties
B22: Labour expenditure outsourced to unrelated parties
B23: Non-labour expenditure | C23: 8537277.113 | D23: 3726651.27 | E23: 1934592.473 | F23: 1619435.486 | G23: 1953798.716 | H23: 2014036.478 | I23: 2033242.721
B24: Total | C24: =SUM(C20:C23) -> 9875301.051 | D24: =SUM(D20:D23) -> 4310719.063 | E24: 2237795.825 | F24: 1873245.151 | G24: 2260012.21 | H24: 2329690.87 | I24: 2351907.255

Sheet E13. Other capex
B1: =IF(dms_MultiYear_ResponseFlag="Yes","REGULATORY REPORTING STATEMENT - HISTORICAL INFORMATION",INDEX(dms_Worksheet_List,MATCH(dms_Model,dms_Model_List))) -> REGULATORY REPORTING STATEMENT
B2: =INDEX(dms_TradingNameFull_List,MATCH(dms_TradingName,dms_TradingName_List)) -> APT Pipelines (NT) Pty Ltd t/a Amadeus
B3: =dms_Header_Span -> 2019-20 - 2025-26
B4: E13. OTHER CAPITAL EXPENDITURE
B6: E13.1 - OTHER CAPEX
B7: E13.1.1 - CAPEX - BY DRIVER
C8: =CONCATENATE("EXPENDITURE Forecast ($0's real, ",dms_DollarReal,")") -> EXPENDITURE Forecast ($0's real, June 2021)
C9: =CRCP_y4 -> 2019-20 | D9: =CRCP_y5 -> 2020-21 | E9: =FRCP_y1 -> 2021-22 | F9: =FRCP_y2 -> 2022-23 | G9: =FRCP_y3 -> 2023-24 | H9: =FRCP_y4 -> 2024-25 | I9: =FRCP_y5 -> 2025-26
B10: Direct labour | C10: 0 | D10: 0 | E10: 0 | F10: 0 | G10: 0 | H10: 0 | I10: 0
B11: Direct materials | C11: 0 | D11: 0 | E11: 0 | F11: 0 | G11: 0 | H11: 0 | I11: 0
B12: Direct contractor | C12: 0 | D12: 0 | E12: 0 | F12: 0 | G12: 0 | H12: 0 | I12: 0
B13: Other direct expenditure | C13: 0 | D13: 0 | E13: 0 | F13: 0 | G13: 0 | H13: 0 | I13: 0
B14: Overheads | C14: 0 | D14: 0 | E14: 0 | F14: 0 | G14: 0 | H14: 0 | I14: 0
B15: Capital contributions included in the above
B16: Total (less capital contributions) | C16: =SUM(C10:C14)-C15 -> 0 | D16: =SUM(D10:D14)-D15 -> 0 | E16: 0 | F16: 0 | G16: 0 | H16: 0 | I16: 0
B19: E13.1.2 - CAPEX BY PROJECT
C20: =CONCATENATE("EXPENDITURE Forecast ($0's real, ",dms_DollarReal,")") -> EXPENDITURE Forecast ($0's real, June 2021)
C21: =CRCP_y4 -> 2019-20 | D21: =CRCP_y5 -> 2020-21 | E21: =FRCP_y1 -> 2021-22 | F21: =FRCP_y2 -> 2022-23 | G21: =FRCP_y3 -> 2023-24 | H21: =FRCP_y4 -> 2024-25 | I21: =FRCP_y5 -> 2025-26
B32: Aggregate of other projects with total expenditure of less than $500,000
B33: Total | C33: =SUM(C22:C32) -> 0 | D33: =SUM(D22:D32) -> 0 | E33: 0 | F33: 0 | G33: 0 | H33: 0 | I33: 0

Sheet E17. Step changes
B1: =INDEX(dms_Worksheet_List,MATCH(dms_Model,dms_Model_List)) -> REGULATORY REPORTING STATEMENT
B2: =INDEX(dms_TradingNameFull_List,MATCH(dms_TradingName,dms_TradingName_List)) -> APT Pipelines (NT) Pty Ltd t/a Amadeus
B3: =dms_Header_Span -> 2019-20 - 2025-26
B4: E17. STEP CHANGES
B6: E17.1 - STEP CHANGES FOR REFERENCE SERVICES
B7: E17.1.1 - FORECAST OPEX
D8: EXPENDITURE
D9: =CONCATENATE("$0's, real ",dms_DollarReal) -> $0's, real June 2021
B10: Step change | C10: Description | D10: =CRCP_y4 -> 2019-20 | E10: =CRCP_y5 -> 2020-21 | F10: =FRCP_y1 -> 2021-22 | G10: =FRCP_y2 -> 2022-23 | H10: =FRCP_y3 -> 2023-24 | I10: =FRCP_y4 -> 2024-25 | J10: =FRCP_y5 -> 2025-26
B11: Audit and Review | C11: Annual Regulatory Information Notice Audit and Review Costs | D11: 120000 | E11: 120000 | F11: 120000 | G11: 120000 | H11: 120000 | I11: 120000 | J11: 120000
B21: Total | D21: =SUM(D11:D20) -> 120000 | E21: 120000 | F21: 120000 | G21: 120000 | H21: 120000 | I21: 120000 | J21: 120000
B23: E17.1.2 - FORECAST CAPEX
D24: EXPENDITURE
D25: =CONCATENATE("$0's, real ", dms_DollarReal) -> $0's, real June 2021
B26: Step change | C26: Description | D26: =CRCP_y4 -> 2019-20 | E26: =CRCP_y5 -> 2020-21 | F26: =FRCP_y1 -> 2021-22 | G26: =FRCP_y2 -> 2022-23 | H26: =FRCP_y3 -> 2023-24 | I26: =FRCP_y4 -> 2024-25 | J26: =FRCP_y5 -> 2025-26
B37: Total | D37: =SUM(D27:D36) -> 0 | E37: 0 | F37: 0 | G37: 0 | H37: 0 | I37: 0 | J37: 0
B41: E17.2 - CATEGORY SPECIFIC FORECASTS
D42: EXPENDITURE
D43: =CONCATENATE("$0's, real ",dms_DollarReal) -> $0's, real June 2021
B44: Category desription | D44: =CRCP_y4 -> 2019-20 | E44: =CRCP_y5 -> 2020-21 | F44: =FRCP_y1 -> 2021-22 | G44: =FRCP_y2 -> 2022-23 | H44: =FRCP_y3 -> 2023-24 | I44: =FRCP_y4 -> 2024-25 | J44: =FRCP_y5 -> 2025-26
B45: Inline inspection | D45: 485881.4185 | E45: 338294.9465 | F45: 204566.5361 | G45: 357991.4383 | H45: 357991.4383 | I45: 102283.2681 | J45: 112511.5949
B46: Excavation | D46: 0 | E46: 0 | F46: 0 | G46: 0 | H46: 0 | I46: 0 | J46: 0
B70: Total | D70: =SUM(D45:D69) -> 485881.4185 | E70: 338294.9465 | F70: 204566.5361 | G70: 357991.4383 | H70: 357991.4383 | I70: 102283.2681 | J70: 112511.5949

Sheet E20. Opex
B1: =IF(dms_MultiYear_ResponseFlag="Yes","REGULATORY REPORTING STATEMENT - HISTORICAL INFORMATION",INDEX(dms_Worksheet_List,MATCH(dms_Model,dms_Model_List))) -> REGULATORY REPORTING STATEMENT
B2: =INDEX(dms_TradingNameFull_List,MATCH(dms_TradingName,dms_TradingName_List)) -> APT Pipelines (NT) Pty Ltd t/a Amadeus
B3: =dms_Header_Span -> 2019-20 - 2025-26
B4: E20. OPERATING EXPENDITURE
B6: IMPORTANT!
B7: =CONCATENATE("Has ",dms_TradingName," used a base-step-trend model to derive its opex forecast? ") -> Has Amadeus used a base-step-trend model to derive its opex forecast? | D7: Yes
B8: Yes / No
B9: Please nominate the base year | D9: 2017-18
B11: E20.1 - OPEX - BY DRIVER
B12: E20.1.1 - REFERENCE SERVICES
C13: EXPENDITURE
C14: =CONCATENATE("$0's, real ",dms_DollarReal) -> $0's, real June 2021
C15: =CRCP_y1 -> 2016-17 | D15: =CRCP_y2 -> 2017-18 | E15: =CRCP_y3 -> 2018-19 | F15: =CRCP_y4 -> 2019-20 | G15: =CRCP_y5 -> 2020-21 | H15: =FRCP_y1 -> 2021-22 | I15: =FRCP_y2 -> 2022-23 | J15: =FRCP_y3 -> 2023-24 | K15: =FRCP_y4 -> 2024-25 | L15: =FRCP_y5 -> 2025-26
B16: Base year total opex, excluding category specific
B17: Increment from base year to final year
B18: Price growth
B19: Output growth
B20: Productivity growth
B21: Step changes
B22: Category specific | F22: =IF(ISBLANK('E17. Step changes'!D70),"",'E17. Step changes'!D70) -> 485881.4185 | G22: =IF(ISBLANK('E17. Step changes'!E70),"",'E17. Step changes'!E70) -> 338294.9465 | H22: =IF(ISBLANK('E17. Step changes'!F70),"",'E17. Step changes'!F70) -> 204566.5361 | I22: =IF(ISBLANK('E17. Step changes'!G70),"",'E17. Step changes'!G70) -> 357991.4383 | J22: =IF(ISBLANK('E17. Step changes'!H70),"",'E17. Step changes'!H70) -> 357991.4383 | K22: =IF(ISBLANK('E17. Step changes'!I70),"",'E17. Step changes'!I70) -> 102283.2681 | L22: =IF(ISBLANK('E17. Step changes'!J70),"",'E17. Step changes'!J70) -> 112511.5949
B24: E20.1.3 - OTHER SERVICES PROVIDED AS A COVERED PIPELINE
C25: EXPENDITURE
C26: =CONCATENATE("$0's, real ",dms_DollarReal) -> $0's, real June 2021
C27: =CRCP_y1 -> 2016-17 | D27: =CRCP_y2 -> 2017-18 | E27: =CRCP_y3 -> 2018-19 | F27: =CRCP_y4 -> 2019-20 | G27: =CRCP_y5 -> 2020-21 | H27: =FRCP_y1 -> 2021-22 | I27: =FRCP_y2 -> 2022-23 | J27: =FRCP_y3 -> 2023-24 | K27: =FRCP_y4 -> 2024-25 | L27: =FRCP_y5 -> 2025-26
B28: Base year total opex, excluding category specific
B29: Increment from base year to final year
B30: Price growth
B31: Output growth
B32: Productivity growth
B33: Step changes
B34: Category specific
B36: E20.1.5 - ALL OPEX
C37: EXPENDITURE
C38: =CONCATENATE("$0's, real ",dms_DollarReal) -> $0's, real June 2021
C39: =CRCP_y1 -> 2016-17 | D39: =CRCP_y2 -> 2017-18 | E39: =CRCP_y3 -> 2018-19 | F39: =CRCP_y4 -> 2019-20 | G39: =CRCP_y5 -> 2020-21 | H39: =FRCP_y1 -> 2021-22 | I39: =FRCP_y2 -> 2022-23 | J39: =FRCP_y3 -> 2023-24 | K39: =FRCP_y4 -> 2024-25 | L39: =FRCP_y5 -> 2025-26
B40: Base year total opex, excluding category specific
B41: Increment from base year to final year
B42: Price growth
B43: Output growth
B44: Productivity growth
B45: Step changes
B46: Category specific
B48: E20.2 - OPEX - BY CATEGORY
B49: E20.2.1 - REFERENCE SERVICES
C50: =CONCATENATE("EXPENDITURE Forecast ($0's real, ",dms_DollarReal,")") -> EXPENDITURE Forecast ($0's real, June 2021)
C51: =CRCP_y1 -> 2016-17 | D51: =CRCP_y2 -> 2017-18 | E51: =CRCP_y3 -> 2018-19 | F51: =CRCP_y4 -> 2019-20 | G51: =CRCP_y5 -> 2020-21 | H51: =FRCP_y1 -> 2021-22 | I51: =FRCP_y2 -> 2022-23 | J51: =FRCP_y3 -> 2023-24 | K51: =FRCP_y4 -> 2024-25 | L51: =FRCP_y5 -> 2025-26
B52: Repairs and maintenance
B53: Other operating
B54: Debt raising
B55: Equity raising
B56: Total | F56: =SUM(F52:F55) -> 0 | G56: 0 | H56: 0 | I56: 0 | J56: 0 | K56: 0 | L56: 0
B58: E20.2.3 - OTHER SERVICES PROVIDED AS A COVERED PIPELINE
C59: =CONCATENATE("EXPENDITURE Forecast ($0's real, ",dms_DollarReal,")") -> EXPENDITURE Forecast ($0's real, June 2021)
C60: =CRCP_y1 -> 2016-17 | D60: =CRCP_y2 -> 2017-18 | E60: =CRCP_y3 -> 2018-19 | F60: =CRCP_y4 -> 2019-20 | G60: =CRCP_y5 -> 2020-21 | H60: =FRCP_y1 -> 2021-22 | I60: =FRCP_y2 -> 2022-23 | J60: =FRCP_y3 -> 2023-24 | K60: =FRCP_y4 -> 2024-25 | L60: =FRCP_y5 -> 2025-26
B61: Repairs and maintenance
B62: Other operating
B63: Debt raising
B64: Equity raising
B65: Total | F65: =SUM(F61:F64) -> 0 | G65: 0 | H65: 0 | I65: 0 | J65: 0 | K65: 0 | L65: 0
B67: E20.2.5 - ALL OPEX - BY CATEGORY
C68: =CONCATENATE("EXPENDITURE Forecast ($0's real, ",dms_DollarReal,")") -> EXPENDITURE Forecast ($0's real, June 2021)
C69: =CRCP_y1 -> 2016-17 | D69: =CRCP_y2 -> 2017-18 | E69: =CRCP_y3 -> 2018-19 | F69: =CRCP_y4 -> 2019-20 | G69: =CRCP_y5 -> 2020-21 | H69: =FRCP_y1 -> 2021-22 | I69: =FRCP_y2 -> 2022-23 | J69: =FRCP_y3 -> 2023-24 | K69: =FRCP_y4 -> 2024-25 | L69: =FRCP_y5 -> 2025-26
B70: Repairs and maintenance
B71: Other operating
B72: Debt raising
B73: Equity raising
B74: Total | F74: =SUM(F70:F73) -> 0 | G74: 0 | H74: 0 | I74: 0 | J74: 0 | K74: 0 | L74: 0
B77: E20.3 - OPEX - BY CATEGORY - RELATED PARTY MARGIN EXPENDITURE
B78: E20.3.1 - REFERENCE SERVICES
C79: =CONCATENATE("EXPENDITURE Forecast ($0's real, ",dms_DollarReal,")") -> EXPENDITURE Forecast ($0's real, June 2021)
C80: =CRCP_y1 -> 2016-17 | D80: =CRCP_y2 -> 2017-18 | E80: =CRCP_y3 -> 2018-19 | F80: =CRCP_y4 -> 2019-20 | G80: =CRCP_y5 -> 2020-21 | H80: =FRCP_y1 -> 2021-22 | I80: =FRCP_y2 -> 2022-23 | J80: =FRCP_y3 -> 2023-24 | K80: =FRCP_y4 -> 2024-25 | L80: =FRCP_y5 -> 2025-26
B81: Repairs and maintenance
B82: Other operating
B83: Debt raising
B84: Equity raising
B85: Total | F85: =SUM(F81:F84) -> 0 | G85: 0 | H85: 0 | I85: 0 | J85: 0 | K85: 0 | L85: 0
B87: E20.3.3 - OTHER SERVICES PROVIDED AS A COVERED PIPELINE
C88: =CONCATENATE("EXPENDITURE Forecast ($0's real, ",dms_DollarReal,")") -> EXPENDITURE Forecast ($0's real, June 2021)
C89: =CRCP_y1 -> 2016-17 | D89: =CRCP_y2 -> 2017-18 | E89: =CRCP_y3 -> 2018-19 | F89: =CRCP_y4 -> 2019-20 | G89: =CRCP_y5 -> 2020-21 | H89: =FRCP_y1 -> 2021-22 | I89: =FRCP_y2 -> 2022-23 | J89: =FRCP_y3 -> 2023-24 | K89: =FRCP_y4 -> 2024-25 | L89: =FRCP_y5 -> 2025-26
B90: Repairs and maintenance
B91: Other operating
B92: Debt raising
B93: Equity raising
B94: Total | F94: =SUM(F90:F93) -> 0 | G94: 0 | H94: 0 | I94: 0 | J94: 0 | K94: 0 | L94: 0
B96: E20.3.5 - ALL OPEX - BY CATEGORY - RELATED PARTY MARGIN EXPENDITURE
C97: =CONCATENATE("EXPENDITURE Forecast ($0's real, ",dms_DollarReal,")") -> EXPENDITURE Forecast ($0's real, June 2021)
C98: =CRCP_y1 -> 2016-17 | D98: =CRCP_y2 -> 2017-18 | E98: =CRCP_y3 -> 2018-19 | F98: =CRCP_y4 -> 2019-20 | G98: =CRCP_y5 -> 2020-21 | H98: =FRCP_y1 -> 2021-22 | I98: =FRCP_y2 -> 2022-23 | J98: =FRCP_y3 -> 2023-24 | K98: =FRCP_y4 -> 2024-25 | L98: =FRCP_y5 -> 2025-26
B99: Repairs and maintenance
B100: Other operating
B101: Debt raising
B102: Equity raising
B103: Total | F103: =SUM(F99:F102) -> 0 | G103: 0 | H103: 0 | I103: 0 | J103: 0 | K103: 0 | L103: 0

Sheet N1. Demand
B1: =IF(dms_MultiYear_ResponseFlag="Yes","REGULATORY REPORTING STATEMENT - HISTORICAL INFORMATION",INDEX(dms_Worksheet_List,MATCH(dms_Model,dms_Model_List))) -> REGULATORY REPORTING STATEMENT
B2: =INDEX(dms_TradingNameFull_List,MATCH(dms_TradingName,dms_TradingName_List)) -> APT Pipelines (NT) Pty Ltd t/a Amadeus
B3: =dms_Header_Span -> 2019-20 - 2025-26
B4: N1. DEMAND
B6: N1.1 - DEMAND - BY USER TYPE
C7: VOLUMES
C8: GJ
C9: =CRCP_y4 -> 2019-20 | D9: =CRCP_y5 -> 2020-21 | E9: =FRCP_y1 -> 2021-22 | F9: =FRCP_y2 -> 2022-23 | G9: =FRCP_y3 -> 2023-24 | H9: =FRCP_y4 -> 2024-25 | I9: =FRCP_y5 -> 2025-26
B10: Electricity generation customers | C10: 2 | D10: 2 | E10: 2 | F10: 2 | G10: 2 | H10: 2 | I10: 2
B11: Total | C11: =SUM(C10:C10) -> 2 | D11: 2 | E11: 2 | F11: 2 | G11: 2 | H11: 2 | I11: 2
B14: N1.2 - DEMAND - BY REFERENCE SERVICES
C15: VOLUMES
C16: GJ
B17: Reference service | C17: =CRCP_y4 -> 2019-20 | D17: =CRCP_y5 -> 2020-21 | E17: =FRCP_y1 -> 2021-22 | F17: =FRCP_y2 -> 2022-23 | G17: =FRCP_y3 -> 2023-24 | H17: =FRCP_y4 -> 2024-25 | I17: =FRCP_y5 -> 2025-26
B18: Firm Service | C18: 0 | D18: 0 | E18: 0 | F18: 0 | G18: 0 | H18: 0 | I18: 0
B19: Interruptible Service | E19: 5475000 | F19: 5475000 | G19: 5475000 | H19: 5490000 | I19: 5475000
B38: Total | C38: =SUM(C18:C37) -> 0 | D38: =SUM(D18:D37) -> 0 | E38: 5475000 | F38: 5475000 | G38: 5475000 | H38: 5490000 | I38: 5475000
B41: N1.3 - WITHDRAWALS
B42: N1.3.1 - PEAK VOLUME - BY LOCATION
C43: VOLUMES
C44: TJ
B45: Withdrawal Point | C45: =CRCP_y4 -> 2019-20 | D45: =CRCP_y5 -> 2020-21 | E45: =FRCP_y1 -> 2021-22 | F45: =FRCP_y2 -> 2022-23 | G45: =FRCP_y3 -> 2023-24 | H45: =FRCP_y4 -> 2024-25 | I45: =FRCP_y5 -> 2025-26
B46: A. MINIMUM
B47: Darwin Channel Island | C47: 7251.558 | D47: 7231.745 | E47: 7231.745 | F47: 7231.745 | G47: 7251.558 | H47: 7231.745 | I47: 7231.745
B48: Darwin City Gate (distribution system) | C48: 2.4888 | D48: 2.482 | E48: 2.482 | F48: 2.482 | G48: 2.4888 | H48: 2.482 | I48: 2.482
B49: Darwin City Gate (into Wickham Point Pipeline) | C49: 590.968 | D49: 589.3533333 | E49: 589.3533333 | F49: 589.3533333 | G49: 590.968 | H49: 589.3533333 | I49: 589.3533333
B50: Darwin Townend Road | C50: 0 | D50: 0 | E50: 0 | F50: 0 | G50: 0 | H50: 0 | I50: 0
B51: Pine Creek | C51: 219.234 | D51: 218.635 | E51: 218.635 | F51: 218.635 | G51: 219.234 | H51: 218.635 | I51: 218.635
B52: Katherine | C52: 0 | D52: 0 | E52: 0 | F52: 0 | G52: 0 | H52: 0 | I52: 0
B53: Daly Waters | C53: 0 | D53: 0 | E53: 0 | F53: 0 | G53: 0 | H53: 0 | I53: 0
B54: Elliot | C54: 7.3932 | D54: 7.373 | E54: 7.373 | F54: 7.373 | G54: 7.3932 | H54: 7.373 | I54: 7.373
B55: Warrego (Northern Gas Pipeline) | C55: 0 | D55: 0 | E55: 0 | F55: 0 | G55: 0 | H55: 0 | I55: 0
B56: Tennant Creek | C56: 112.6548 | D56: 112.347 | E56: 112.347 | F56: 112.347 | G56: 112.6548 | H56: 112.347 | I56: 112.347
B57: Tanami Road | C57: 0 | D57: 0 | E57: 0 | F57: 0 | G57: 0 | H57: 0 | I57: 0
B58: Palm Valley Interconnect (Alice Springs) | C58: 65.148 | D58: 64.97 | E58: 64.97 | F58: 64.97 | G58: 65.148 | H58: 64.97 | I58: 64.97
B67: B. MAXIMUM
B68: =IF(ISBLANK(B47),"",B47) -> Darwin Channel Island | C68: 16850.64 | D68: 16804.6 | E68: 16804.6 | F68: 16804.6 | G68: 16850.64 | H68: 16804.6 | I68: 16804.6
B69: Darwin City Gate (distribution system) | C69: 65.9532 | D69: 65.773 | E69: 65.773 | F69: 65.773 | G69: 65.9532 | H69: 65.773 | I69: 65.773
B70: Darwin City Gate (into Wickham Point Pipeline) | C70: 8741.788 | D70: 8717.903333 | E70: 8717.903333 | F70: 8717.903333 | G70: 8741.788 | H70: 8717.903333 | I70: 8717.903333
B71: Darwin Townend Road | C71: 238.998 | D71: 238.345 | E71: 238.345 | F71: 238.345 | G71: 238.998 | H71: 238.345 | I71: 238.345
B72: Pine Creek | C72: 2196.732 | D72: 2190.73 | E72: 2190.73 | F72: 2190.73 | G72: 2196.732 | H72: 2190.73 | I72: 2190.73
B73: Katherine | C73: 3038.532 | D73: 3030.23 | E73: 3030.23 | F73: 3030.23 | G73: 3038.532 | H73: 3030.23 | I73: 3030.23
B74: Daly Waters | C74: 4022.34 | D74: 4011.35 | E74: 4011.35 | F74: 4011.35 | G74: 4022.34 | H74: 4011.35 | I74: 4011.35
B75: Elliot | C75: 60.4632 | D75: 60.298 | E75: 60.298 | F75: 60.298 | G75: 60.4632 | H75: 60.298 | I75: 60.298
B76: Warrego (Northern Gas Pipeline) | C76: 34488.546 | D76: 34394.315 | E76: 34394.315 | F76: 34394.315 | G76: 34488.546 | H76: 34394.315 | I76: 34394.315
B77: Tennant Creek | C77: 623.2248 | D77: 621.522 | E77: 621.522 | F77: 621.522 | G77: 623.2248 | H77: 621.522 | I77: 621.522
B78: Tanami Road | C78: 3111 | D78: 3102.5 | E78: 3102.5 | F78: 3102.5 | G78: 3111 | H78: 3102.5 | I78: 3102.5
B79: Palm Valley Interconnect (Alice Springs) | C79: 3037.8 | D79: 3029.5 | E79: 3029.5 | F79: 3029.5 | G79: 3037.8 | H79: 3029.5 | I79: 3029.5
B88: C. AVERAGE
B89: =IF(ISBLANK(B47),"",B47) -> Darwin Channel Island | C89: 10218.01489 | D89: 10516.17991 | E89: 10852.69767 | F89: 11199.98399 | G89: 11590.05029 | H89: 11928.25175 | I89: 12309.95581
B90: Darwin City Gate (distribution system) | C90: 22.2292 | D90: 22.2292 | E90: 22.2292 | F90: 22.2292 | G90: 22.2292 | H90: 22.2292 | I90: 22.2292
B91: Darwin City Gate (into Wickham Point Pipeline) | C91: 4575 | D91: 4708.5 | E91: 4859.172 | F91: 5014.665504 | G91: 5189.313252 | H91: 5340.739114 | I91: 5511.642765
B92: Darwin Townend Road | C92: 68.98796406 | D92: 68.79947235 | E92: 68.79947235 | F92: 68.79947235 | G92: 68.98796406 | H92: 68.79947235 | I92: 68.79947235
B93: Pine Creek | C93: 1667.562225 | D93: 1716.222237 | E93: 1771.141349 | F93: 1827.817872 | G93: 1891.476011 | H93: 1946.669901 | I93: 2008.963338
B94: Katherine | C94: 447.6068924 | D94: 460.6682083 | E94: 475.409591 | F94: 490.6226979 | G94: 507.7098095 | H94: 522.5249482 | I94: 539.2457465
B95: Daly Waters | C95: 2629.4974 | D95: 2629.4974 | E95: 2629.4974 | F95: 2629.4974 | G95: 2629.4974 | H95: 2629.4974 | I95: 2629.4974
B96: Elliot | C96: 38.7344 | D96: 38.7344 | E96: 38.7344 | F96: 38.7344 | G96: 38.7344 | H96: 38.7344 | I96: 38.7344
B97: Warrego (Northern Gas Pipeline) | C97: 28218.6 | D97: 28141.5 | E97: 28141.5 | F97: 28141.5 | G97: 28218.6 | H97: 28141.5 | I97: 28141.5
B98: Tennant Creek | C98: 403.5446 | D98: 403.5446 | E98: 403.5446 | F98: 403.5446 | G98: 403.5446 | H98: 403.5446 | I98: 403.5446
B99: Tanami Road | C99: 2433.488123 | D99: 2426.839248 | E99: 2426.839248 | F99: 2426.839248 | G99: 2433.488123 | H99: 2426.839248 | I99: 2426.839248
B100: Palm Valley Interconnect (Alice Springs) | C100: 1566.439907 | D100: 1562.160017 | E100: 1562.160017 | F100: 1562.160017 | G100: 1566.439907 | H100: 1562.160017 | I100: 1562.160017
B111: N1.3.2 - ANNUAL VOLUME - BY LOCATION
C112: VOLUMES
C113: TJ
B114: Withdrawal Point | C114: =CRCP_y4 -> 2019-20 | D114: =CRCP_y5 -> 2020-21 | E114: =FRCP_y1 -> 2021-22 | F114: =FRCP_y2 -> 2022-23 | G114: =FRCP_y3 -> 2023-24 | H114: =FRCP_y4 -> 2024-25 | I114: =FRCP_y5 -> 2025-26
B115: =IF(ISBLANK(B47),"",B47) -> Darwin Channel Island | C115: 10218.01489 | D115: 10516.17991 | E115: 10852.69767 | F115: 11199.98399 | G115: 11590.05029 | H115: 11928.25175 | I115: 12309.95581
B116: Darwin City Gate (distribution system) | C116: 22.2292 | D116: 22.2292 | E116: 22.2292 | F116: 22.2292 | G116: 22.2292 | H116: 22.2292 | I116: 22.2292
B117: Darwin City Gate (into Wickham Point Pipeline) | C117: 4575 | D117: 4708.5 | E117: 4859.172 | F117: 5014.665504 | G117: 5189.313252 | H117: 5340.739114 | I117: 5511.642765
B118: Darwin Townend Road | C118: 68.98796406 | D118: 68.79947235 | E118: 68.79947235 | F118: 68.79947235 | G118: 68.98796406 | H118: 68.79947235 | I118: 68.79947235
B119: Pine Creek | C119: 1667.562225 | D119: 1716.222237 | E119: 1771.141349 | F119: 1827.817872 | G119: 1891.476011 | H119: 1946.669901 | I119: 2008.963338
B120: Katherine | C120: 447.6068924 | D120: 460.6682083 | E120: 475.409591 | F120: 490.6226979 | G120: 507.7098095 | H120: 522.5249482 | I120: 539.2457465
B121: Daly Waters | C121: 2629.4974 | D121: 2629.4974 | E121: 2629.4974 | F121: 2629.4974 | G121: 2629.4974 | H121: 2629.4974 | I121: 2629.4974
B122: Elliot | C122: 38.7344 | D122: 38.7344 | E122: 38.7344 | F122: 38.7344 | G122: 38.7344 | H122: 38.7344 | I122: 38.7344
B123: Warrego (Northern Gas Pipeline) | C123: 28218.6 | D123: 28141.5 | E123: 28141.5 | F123: 28141.5 | G123: 28218.6 | H123: 28141.5 | I123: 28141.5
B124: Tennant Creek | C124: 403.5446 | D124: 403.5446 | E124: 403.5446 | F124: 403.5446 | G124: 403.5446 | H124: 403.5446 | I124: 403.5446
B125: Tanami Road | C125: 2433.488123 | D125: 2426.839248 | E125: 2426.839248 | F125: 2426.839248 | G125: 2433.488123 | H125: 2426.839248 | I125: 2426.839248
B126: Palm Valley Interconnect (Alice Springs) | C126: 1566.439907 | D126: 1562.160017 | E126: 1562.160017 | F126: 1562.160017 | G126: 1566.439907 | H126: 1562.160017 | I126: 1562.160017
B139: N1.4 - INJECTIONS
B140: N1.4.1 - PEAK VOLUME - BY LOCATION
C141: VOLUMES
C142: TJ
B143: Injection Point | C143: =CRCP_y4 -> 2019-20 | D143: =CRCP_y5 -> 2020-21 | E143: =FRCP_y1 -> 2021-22 | F143: =FRCP_y2 -> 2022-23 | G143: =FRCP_y3 -> 2023-24 | H143: =FRCP_y4 -> 2024-25 | I143: =FRCP_y5 -> 2025-26
B144: A. MINIMUM
B145: Darwin City Gate (from Wickham Point Pipeline) | C145: 0 | D145: 0 | E145: 0 | F145: 0 | G145: 0 | H145: 0 | I145: 0
B146: Ban Ban Springs | C146: 0 | D146: 0 | E146: 0 | F146: 0 | G146: 0 | H146: 0 | I146: 0
B147: Mereenie | C147: 0 | D147: 0 | E147: 0 | F147: 0 | G147: 0 | H147: 0 | I147: 0
B148: Palm Valley | C148: 0 | D148: 0 | E148: 0 | F148: 0 | G148: 0 | H148: 0 | I148: 0
B165: B. MAXIMUM
B166: =IF(ISBLANK(B145),"",B145) -> Darwin City Gate (from Wickham Point Pipeline) | C166: 0 | D166: 0 | E166: 0 | F166: 0 | G166: 0 | H166: 0 | I166: 0
B167: Ban Ban Springs | C167: 38064 | D167: 37960 | E167: 37960 | F167: 37960 | G167: 38064 | H167: 37960 | I167: 37960
B168: Mereenie | C168: 21228 | D168: 21170 | E168: 21170 | F168: 21170 | G168: 21228 | H168: 21170 | I168: 21170
B169: Palm Valley | C169: 5490 | D169: 5475 | E169: 5475 | F169: 5475 | G169: 5490 | H169: 5475 | I169: 5475
B186: C. AVERAGE
B187: =IF(ISBLANK(B145),"",B145) -> Darwin City Gate (from Wickham Point Pipeline) | C187: 0 | D187: 0 | E187: 0 | F187: 0 | G187: 0 | H187: 0 | I187: 0
B188: Ban Ban Springs | C188: 33342.6 | D188: 33726 | E188: 34200.5 | F188: 34711.5 | G188: 35319 | H188: 35770 | I188: 36317.5
B189: Mereenie | C189: 15832.39733 | D189: 15825.63941 | E189: 15935.13941 | F189: 15971.63941 | G189: 16125.19733 | H189: 16117.63941 | I189: 16227.13941
B190: Palm Valley | C190: 3439.802483 | D190: 3430.404116 | E190: 3430.404116 | F190: 3430.404116 | G190: 3439.802483 | H190: 3430.404116 | I190: 3430.404116
B209: N1.4.2 - ANNUAL VOLUME - BY LOCATION
C210: VOLUMES
C211: TJ
B212: Injection Point | C212: =CRCP_y4 -> 2019-20 | D212: =CRCP_y5 -> 2020-21 | E212: =FRCP_y1 -> 2021-22 | F212: =FRCP_y2 -> 2022-23 | G212: =FRCP_y3 -> 2023-24 | H212: =FRCP_y4 -> 2024-25 | I212: =FRCP_y5 -> 2025-26
B213: =IF(ISBLANK(B145),"",B145) -> Darwin City Gate (from Wickham Point Pipeline) | C213: 0 | D213: 0 | E213: 0 | F213: 0 | G213: 0 | H213: 0 | I213: 0
B214: Ban Ban Springs | C214: 33342.6 | D214: 33726 | E214: 34200.5 | F214: 34711.5 | G214: 35319 | H214: 35770 | I214: 36317.5
B215: Mereenie | C215: 15832.39733 | D215: 15825.63941 | E215: 15935.13941 | F215: 15971.63941 | G215: 16125.19733 | H215: 16117.63941 | I215: 16227.13941
B216: Palm Valley | C216: 3439.802483 | D216: 3430.404116 | E216: 3430.404116 | F216: 3430.404116 | G216: 3439.802483 | H216: 3430.404116 | I216: 3430.404116

Sheet N2. Network characteristics
B1: =IF(dms_MultiYear_ResponseFlag="Yes","REGULATORY REPORTING STATEMENT - HISTORICAL INFORMATION",INDEX(dms_Worksheet_List,MATCH(dms_Model,dms_Model_List))) -> REGULATORY REPORTING STATEMENT
B2: =INDEX(dms_TradingNameFull_List,MATCH(dms_TradingName,dms_TradingName_List)) -> APT Pipelines (NT) Pty Ltd t/a Amadeus
B3: =dms_Header_Span -> 2019-20 - 2025-26
B4: N2. NETWORK CHARACTERISTICS
B6: N2.1 - NETWORK LENGTH - BY PIPELINE
C7: VOLUMES
C8: KM
B9: Pipeline name | C9: =CRCP_y4 -> 2019-20 | D9: =CRCP_y5 -> 2020-21 | E9: =FRCP_y1 -> 2021-22 | F9: =FRCP_y2 -> 2022-23 | G9: =FRCP_y3 -> 2023-24 | H9: =FRCP_y4 -> 2024-25 | I9: =FRCP_y5 -> 2025-26
B10: AGP Ban Ban Springs to Darwin | C10: 133.2 | D10: 133.2 | E10: 133.2 | F10: 133.2 | G10: 133.2 | H10: 133.2 | I10: 133.2
B11: AGP Ban Ban Springs to Warrego (NGP) | C11: 766.8 | D11: 766.8 | E11: 766.8 | F11: 766.8 | G11: 766.8 | H11: 766.8 | I11: 766.8
B12: AGP Southern Producers to Warrego (NGP) | C12: 726.1 | D12: 726.1 | E12: 726.1 | F12: 726.1 | G12: 726.1 | H12: 726.1 | I12: 726.1
B13: AGP Aggregate
B25: Total | C25: =SUM(C10:C24) -> 1626.1 | D25: 1626.1 | E25: 1626.1 | F25: 1626.1 | G25: 1626.1 | H25: 1626.1 | I25: 1626.1
B28: N2.2 - NETWORK CAPACITY - BY PIPELINE
C29: VOLUMES
C30: GJ / day
B31: Pipeline name | C31: =CRCP_y4 -> 2019-20 | D31: =CRCP_y5 -> 2020-21 | E31: =FRCP_y1 -> 2021-22 | F31: =FRCP_y2 -> 2022-23 | G31: =FRCP_y3 -> 2023-24 | H31: =FRCP_y4 -> 2024-25 | I31: =FRCP_y5 -> 2025-26
B32: =IF(ISBLANK(B10),"",B10) -> AGP Ban Ban Springs to Darwin | C32: 53600 | D32: 53600 | E32: 53600 | F32: 53600 | G32: 53600 | H32: 53600 | I32: 53600
B33: AGP Ban Ban Springs to Warrego (NGP) | C33: 50400 | D33: 50400 | E33: 50400 | F33: 50400 | G33: 50400 | H33: 50400 | I33: 50400
B34: AGP Southern Producers to Warrego (NGP) | C34: 61000 | D34: 61000 | E34: 61000 | F34: 61000 | G34: 61000 | H34: 61000 | I34: 61000
B35: AGP Aggregate
B47: Total | C47: =SUM(C32:C46) -> 165000 | D47: 165000 | E47: 165000 | F47: 165000 | G47: 165000 | H47: 165000 | I47: 165000
B51: N2.3 - AVERAGE UTILISATION - BY PIPELINE
C52: VOLUMES
C53: %
B54: Pipeline name | C54: =CRCP_y4 -> 2019-20 | D54: =CRCP_y5 -> 2020-21 | E54: =FRCP_y1 -> 2021-22 | F54: =FRCP_y2 -> 2022-23 | G54: =FRCP_y3 -> 2023-24 | H54: =FRCP_y4 -> 2024-25 | I54: =FRCP_y5 -> 2025-26
B55: =IF(ISBLANK(B10),"",B10) -> AGP Ban Ban Springs to Darwin | C55: 0.7587182964 | D55: 0.7828515939 | E55: 0.8077539532 | F55: 0.833453188 | G55: 0.8599716939 | H55: 0.8873451001 | I55: 0.9155912516
B56: AGP Ban Ban Springs to Warrego (NGP) | C56: 0.9837792964 | D56: 0.9843069738 | E56: 0.9836171631 | F56: 0.9840640086 | G56: 0.9832399689 | H56: 0.9842900703 | I56: 0.9840124172
B57: AGP Southern Producers to Warrego (NGP) | C57: 0.8625946042 | D57: 0.865567259 | E57: 0.8692659004 | F57: 0.8721255213 | G57: 0.8757615555 | H57: 0.878709651 | I57: 0.8824878654
B58: AGP Aggregate
B72: N2.4 - FIRM CONTRACTED CAPACITY - BY PIPELINE
C73: VOLUMES
C74: %
B75: Pipeline name | C75: =CRCP_y4 -> 2019-20 | D75: =CRCP_y5 -> 2020-21 | E75: =FRCP_y1 -> 2021-22 | F75: =FRCP_y2 -> 2022-23 | G75: =FRCP_y3 -> 2023-24 | H75: =FRCP_y4 -> 2024-25 | I75: =FRCP_y5 -> 2025-26
B76: =IF(ISBLANK(B10),"",B10) -> AGP Ban Ban Springs to Darwin
B77: AGP Ban Ban Springs to Warrego (NGP)
B78: AGP Southern Producers to Warrego (NGP)
B79: AGP Aggregate | C79: 0.8787878788 | D79: 0.8787878788 | E79: 0.8787878788 | F79: 0.8787878788 | G79: 0.8787878788 | H79: 0.8787878788 | I79: 0.8787878788

Sheet S1. User Numbers
B1: =IF(dms_MultiYear_ResponseFlag="Yes","REGULATORY REPORTING STATEMENT - HISTORICAL INFORMATION",INDEX(dms_Worksheet_List,MATCH(dms_Model,dms_Model_List))) -> REGULATORY REPORTING STATEMENT
B2: =INDEX(dms_TradingNameFull_List,MATCH(dms_TradingName,dms_TradingName_List)) -> APT Pipelines (NT) Pty Ltd t/a Amadeus
B3: =dms_Header_Span -> 2019-20 - 2025-26
B4: S1. USER NUMBERS
B6: S1.1 - USER NUMBERS - BY USER TYPE
C7: VOLUMES
C8: 0's
C9: =CRCP_y4 -> 2019-20 | D9: =CRCP_y5 -> 2020-21 | E9: =FRCP_y1 -> 2021-22 | F9: =FRCP_y2 -> 2022-23 | G9: =FRCP_y3 -> 2023-24 | H9: =FRCP_y4 -> 2024-25 | I9: =FRCP_y5 -> 2025-26
B10: ELECTRICITY GENERATION USERS
B11: User numbers as at 1 July | C11: 2 | D11: 2 | E11: 2 | F11: 2 | G11: 2 | H11: 2 | I11: 2
B12: User numbers as at 30 June | C12: 2 | D12: 2 | E12: 2 | F12: 2 | G12: 2 | H12: 2 | I12: 2
B13: Total user connections
B14: Total user disconnections
B17: S1.2 - USER NUMBERS - BY REFERENCE SERVICE
B18: S1.2.1 - USER NUMBERS AS AT 1 JULY
C19: VOLUMES
C20: 0's
B21: Reference service | C21: =CRCP_y4 -> 2019-20 | D21: =CRCP_y5 -> 2020-21 | E21: =FRCP_y1 -> 2021-22 | F21: =FRCP_y2 -> 2022-23 | G21: =FRCP_y3 -> 2023-24 | H21: =FRCP_y4 -> 2024-25 | I21: =FRCP_y5 -> 2025-26
B22: Firm Service | C22: 0
B23: Interruptible Service | C23: 0
B42: Total | C42: =SUM(C22:C41) -> 0 | D42: 0 | E42: 0 | F42: 0 | G42: 0 | H42: 0 | I42: 0
B44: S1.2.2 - USER NUMBERS AS AT 30 JUNE
C45: VOLUMES
C46: 0's
B47: Reference service | C47: =CRCP_y4 -> 2019-20 | D47: =CRCP_y5 -> 2020-21 | E47: =FRCP_y1 -> 2021-22 | F47: =FRCP_y2 -> 2022-23 | G47: =FRCP_y3 -> 2023-24 | H47: =FRCP_y4 -> 2024-25 | I47: =FRCP_y5 -> 2025-26
B48: =IF(ISBLANK(B22),"",B22) -> Firm Service | C48: 0 | D48: 0 | E48: 0 | F48: 0 | G48: 0 | H48: 0 | I48: 0
B49: =IF(ISBLANK(B23),"",B23) -> Interruptible Service
B50: =IF(ISBLANK(B24),"",B24) -> 
B68: Total | C68: =SUM(C48:C67) -> 0 | D68: 0 | E68: 0 | F68: 0 | G68: 0 | H68: 0 | I68: 0

Sheet S10. Supply quality
B1: =IF(dms_MultiYear_ResponseFlag="Yes","REGULATORY REPORTING STATEMENT - HISTORICAL INFORMATION",INDEX(dms_Worksheet_List,MATCH(dms_Model,dms_Model_List))) -> REGULATORY REPORTING STATEMENT
B2: =INDEX(dms_TradingNameFull_List,MATCH(dms_TradingName,dms_TradingName_List)) -> APT Pipelines (NT) Pty Ltd t/a Amadeus
B3: =dms_Header_Span -> 2019-20 - 2025-26
B4: S10. SUPPLY QUALITY
B7: S10.1 - PRESSURE FAULTS
C8: VOLUMES
C9: 0's
C10: =dms_y1 -> 2019-20 | D10: =dms_y2 -> 2020-21 | E10: =dms_y3 -> 2021-22 | F10: =dms_y4 -> 2022-23 | G10: =dms_y5 -> 2023-24 | H10: =dms_y6 -> 2024-25 | I10: =dms_y7 -> 2025-26 | J10: =dms_y8 -> 2026-27 | K10: =dms_y9 -> 2027-28
B11: USER IMPACT
B12: Poor pressure events impacting users | C12: 1 | D12: 0 | E12: 0 | F12: 0 | G12: 0 | H12: 0
B13: Pressure events with >12 hr resolution | C13: 0 | D13: 0 | E13: 0 | F13: 0 | G13: 0 | H13: 0
B15: FORCE MAJEURE
B16: Poor pressure events - force majeure | C16: 0 | D16: 0 | E16: 0 | F16: 0 | G16: 0 | H16: 0
B17: Poor pressure events - NOT force majeure | C17: 0 | D17: 0 | E17: 0 | F17: 0 | G17: 0 | H17: 0
B18: Total | C18: =SUM(C16:C17) -> 0 | D18: =SUM(D16:D17) -> 0 | E18: 0 | F18: 0 | G18: 0 | H18: 0 | I18: 0 | J18: 0 | K18: 0

Sheet F2. Capex
B1: =IF(dms_MultiYear_ResponseFlag="Yes","REGULATORY REPORTING STATEMENT - HISTORICAL INFORMATION",INDEX(dms_Worksheet_List,MATCH(dms_Model,dms_Model_List))) -> REGULATORY REPORTING STATEMENT
B2: =INDEX(dms_TradingNameFull_List,MATCH(dms_TradingName,dms_TradingName_List)) -> APT Pipelines (NT) Pty Ltd t/a Amadeus
B3: =dms_Header_Span -> 2019-20 - 2025-26
B4: F2. CAPITAL EXPENDITURE
B7: F2.7 - IMMEDIATE EXPENSING OF CAPEX
B8: F2.7.1 - ACTUAL - AS COMMISSIONED
C9: EXPENDITURE
C10: $0's, nominal
B11: Asset class | C11: =dms_y1 -> 2019-20 | D11: =dms_y2 -> 2020-21
B12: Pipeline | C12: 250329 | D12: 248799.3818
B13: Meter Station | C13: 12500 | D13: 0
B42: Total | C42: =SUM(C12:C41) -> 262829 | D42: =SUM(D12:D41) -> 248799.3818

Sheet F3. Revenue
B1: =IF(dms_MultiYear_ResponseFlag="Yes","REGULATORY REPORTING STATEMENT - HISTORICAL INFORMATION",INDEX(dms_Worksheet_List,MATCH(dms_Model,dms_Model_List))) -> REGULATORY REPORTING STATEMENT
B2: =INDEX(dms_TradingNameFull_List,MATCH(dms_TradingName,dms_TradingName_List)) -> APT Pipelines (NT) Pty Ltd t/a Amadeus
B3: =dms_Header_Span -> 2019-20 - 2025-26
B4: F3. REVENUE
B7: F3.1 - REFERENCE SERVICES
C8: EXPENDITURE
C9: =CONCATENATE("Forecast ($0's, real ",dms_DollarReal,")") -> Forecast ($0's, real June 2021)
C10: =CRCP_y4 -> 2019-20 | D10: =CRCP_y5 -> 2020-21 | E10: =FRCP_y1 -> 2021-22 | F10: =FRCP_y2 -> 2022-23 | G10: =FRCP_y3 -> 2023-24 | H10: =FRCP_y4 -> 2024-25 | I10: =FRCP_y5 -> 2025-26
B11: Firm service | C11: 22096023.81 | D11: 21500828.81 | E11: 16377892.31 | F11: 16085399.89 | G11: 15798131.09 | H11: 15515992.62 | I11: 15238892.85
B12: Interruptible service | C12: 0 | D12: 0 | E12: 1694264.721 | F12: 1664006.885 | G12: 1634289.423 | H12: 1605102.685 | I12: 1576437.192
B21: F3.3 - REBATEABLE SERVICES
B22: Total | C22: 0 | D22: 0 | E22: 0 | F22: 0 | G22: 0 | H22: 0 | I22: 0
B23: F3.5 - OTHER SERVICES PROVIDED AS A COVERED PIPELINE
B31: Total Revenue | C31: =SUM(C11:C20,C22,C24:C30) -> 22096023.81 | D31: =SUM(D11:D20,D22,D24:D30) -> 21500828.81 | E31: 18072157.03 | F31: 17749406.78 | G31: 17432420.52 | H31: 17121095.31 | I31: 16815330.04

Sheet Additional disclosures
A3: E11.3 - LABOUR / NON-LABOUR EXPENDITURE SPLIT
A4: These tables have been completed using real$ June 2021.
A6: F3.1 - REFERENCE SERVICES
A7: This table sets out the allocation of smoothed total revenue (from the PTRM) to reference services and other services.

Sheet AER Sheet Heading (hidden)
B1: =IF(dms_MultiYear_ResponseFlag="Yes","REGULATORY REPORTING STATEMENT - HISTORICAL INFORMATION",INDEX(dms_Worksheet_List,MATCH(dms_Model,dms_Model_List))) -> REGULATORY REPORTING STATEMENT
B2: =INDEX(dms_TradingNameFull_List,MATCH(dms_TradingName,dms_TradingName_List)) -> APT Pipelines (NT) Pty Ltd t/a Amadeus
B3: =dms_Header_Span -> 2019-20 - 2025-26
B4: XX
C9: EXPENDITURE
C10: =CONCATENATE("Forecast ($0's, real ",dms_DollarReal,")") -> Forecast ($0's, real June 2021)
C11: =CRCP_y4 -> 2019-20 | D11: =CRCP_y5 -> 2020-21 | E11: =FRCP_y1 -> 2021-22 | F11: =FRCP_y2 -> 2022-23 | G11: =FRCP_y3 -> 2023-24 | H11: =FRCP_y4 -> 2024-25 | I11: =FRCP_y5 -> 2025-26
C40: VOLUMES
C41: 0's
C42: =CRCP_y4 -> 2019-20 | D42: =CRCP_y5 -> 2020-21 | E42: =FRCP_y1 -> 2021-22 | F42: =FRCP_y2 -> 2022-23 | G42: =FRCP_y3 -> 2023-24 | H42: =FRCP_y4 -> 2024-25 | I42: =FRCP_y5 -> 2025-26

Sheet AER CF (hidden)
B1: AER CONDITIONAL FORMATTING
B4: CONDITIONAL FORMATTING MAP
F5: =INDEX(dms_CF_3.6.1, MATCH(dms_TradingName,dms_CF_TradingName))="Y" | G5: =INDEX(dms_CF_3.6.5, MATCH(dms_TradingName,dms_CF_TradingName))="Y" | H5: =INDEX(dms_CF_3.6.6, MATCH(dms_TradingName,dms_CF_TradingName))="Y" | I5: =INDEX(dms_CF_3.6.7.1, MATCH(dms_TradingName,dms_CF_TradingName))="Y" | J5: =INDEX(dms_CF_3.6.7.2, MATCH(dms_TradingName,dms_CF_TradingName))="Y" | K5: =INDEX(dms_CF_3.6.7.3, MATCH(dms_TradingName,dms_CF_TradingName))="Y" | L5: =INDEX(dms_CF_3.6.7.4, MATCH(dms_TradingName,dms_CF_TradingName))="Y" | M5: =INDEX(dms_CF_3.6.8, MATCH(dms_TradingName,dms_CF_TradingName))="Y" | N5: =INDEX(dms_CF_4.1, MATCH(dms_TradingName,dms_CF_TradingName))="Y" | O5: =INDEX(dms_CF_6.6.1, MATCH(dms_TradingName,dms_CF_TradingName))="Y" | P5: =INDEX(dms_CF_6.8, MATCH(dms_TradingName,dms_CF_TradingName))="Y" | Q5: =INDEX(dms_CF_7.12, MATCH(dms_TradingName,dms_CF_TradingName))="Y" | R5: =INDEX(dms_CF_8.1_A, MATCH(dms_TradingName,dms_CF_TradingName))="Y" | S5: =INDEX(dms_CF_8.1_B, MATCH(dms_TradingName,dms_CF_TradingName))="Y" | T5: =INDEX(dms_CF_8.1_Neg, MATCH(dms_TradingName,dms_CF_TradingName))="Y" | U5: =INDEX(dms_CF_4.4.1_Neg, MATCH(dms_TradingName,dms_CF_TradingName))="Y"
B6: dms_CF_TradingName | C6: JurisdictionList | D6: Sector | E6: Segment | F6: dms_CF_3.6.1 | G6: dms_CF_3.6.5 | H6: dms_CF_3.6.6 | I6: dms_CF_3.6.7.1 | J6: dms_CF_3.6.7.2 | K6: dms_CF_3.6.7.3 | L6: dms_CF_3.6.7.4 | M6: dms_CF_3.6.8 | N6: dms_CF_4.1 | O6: dms_CF_6.6.1 | P6: dms_CF_6.8 | Q6: dms_CF_7.12 | R6: dms_CF_8.1_A | S6: dms_CF_8.1_B | T6: dms_CF_8.1_Neg | U6: dms_CF_4.4.1 | V6: dms_CF_MAIFI_flag | W6: Spare1 | X6: Spare2
B7: ActewAGL Distribution | C7: ACT | D7: Electricity | E7: Distribution | G7: Y | I7: Y | J7: Y | K7: N | L7: Y | M7: N | N7: N | O7: N | P7: Y | Q7: Y | R7: N | S7: Y | T7: Y | U7: N | V7: N | W7: N | X7: N
B8: Ausgrid | C8: NSW | D8: Electricity | E8: Distribution | G8: Y | I8: N | J8: N | K8: N | L8: Y | M8: N | N8: N | O8: N | P8: Y | Q8: Y | R8: N | S8: Y | T8: Y | U8: N | V8: N | W8: N | X8: N
B9: AusNet (D) | C9: Vic | D9: Electricity | E9: Distribution | G9: N | I9: N | J9: N | K9: N | L9: N | M9: N | N9: Y | O9: N | P9: Y | Q9: N | R9: N | S9: N | T9: Y | U9: N | V9: N | W9: N | X9: N
B10: AusNet (T) | C10: Vic | D10: Electricity | E10: Transmission | G10: N | I10: N | J10: N | K10: N | L10: N | M10: N | N10: Y | O10: N | P10: Y | Q10: N | R10: N | S10: N | T10: Y | U10: N | V10: N | W10: N | X10: N
B11: CitiPower | C11: Vic | D11: Electricity | E11: Distribution | G11: N | I11: N | J11: N | K11: N | L11: N | M11: N | N11: Y | O11: N | P11: Y | Q11: N | R11: N | S11: N | T11: Y | U11: N | V11: N | W11: N | X11: N
B12: Directlink | C12: Qld | D12: Electricity | E12: Transmission | G12: N | I12: N | J12: N | K12: N | L12: N | M12: N | N12: Y | O12: N | P12: Y | Q12: N | R12: N | S12: Y | T12: Y | U12: N | V12: N | W12: N | X12: N
B13: ElectraNet | C13: SA | D13: Electricity | E13: Transmission | G13: N | I13: N | J13: N | K13: N | L13: N | M13: N | N13: Y | O13: N | P13: Y | Q13: N | R13: N | S13: Y | T13: Y | U13: N | V13: N | W13: N | X13: N
B14: Endeavour Energy | C14: NSW | D14: Electricity | E14: Distribution | G14: Y | I14: N | J14: N | K14: N | L14: Y | M14: N | N14: N | O14: N | P14: Y | Q14: Y | R14: N | S14: Y | T14: Y | U14: Y | V14: N | W14: N | X14: N
B15: Energex | C15: Qld | D15: Electricity | E15: Distribution | G15: Y | I15: N | J15: N | K15: N | L15: N | M15: N | N15: N | O15: N | P15: Y | Q15: Y | R15: N | S15: Y | T15: Y | U15: Y | V15: N | W15: N | X15: N
B16: Ergon Energy | C16: Qld | D16: Electricity | E16: Distribution | G16: Y | I16: N | J16: N | K16: N | L16: N | M16: N | N16: N | O16: N | P16: Y | Q16: Y | R16: N | S16: Y | T16: Y | U16: N | V16: N | W16: N | X16: N
B17: Essential Energy | C17: NSW | D17: Electricity | E17: Distribution | G17: Y | I17: N | J17: N | K17: N | L17: Y | M17: N | N17: N | O17: N | P17: Y | Q17: Y | R17: N | S17: Y | T17: Y | U17: N | V17: N | W17: N | X17: N
B18: Jemena Electricity | C18: Vic | D18: Electricity | E18: Distribution | G18: N | I18: N | J18: N | K18: N | L18: N | M18: N | N18: Y | O18: N | P18: Y | Q18: N | R18: N | S18: N | T18: Y | U18: N | V18: N | W18: N | X18: N
B19: Murraylink | C19: SA | D19: Electricity | E19: Transmission | G19: N | I19: N | J19: N | K19: N | L19: N | M19: N | N19: Y | O19: N | P19: Y | Q19: N | R19: N | S19: Y | T19: Y | U19: N | V19: N | W19: N | X19: N
B20: Power and Water | C20: NT | D20: Electricity | E20: Distribution | G20: N | I20: N | J20: Y | K20: N | L20: N | M20: Y | N20: Y | O20: Y | P20: Y | Q20: Y | R20: N | S20: Y | T20: Y | U20: N | V20: N | W20: N | X20: N
B21: Powercor Australia | C21: Vic | D21: Electricity | E21: Distribution | G21: N | I21: N | J21: N | K21: N | L21: N | M21: N | N21: Y | O21: N | P21: Y | Q21: N | R21: N | S21: N | T21: Y | U21: N | V21: N | W21: N | X21: N
B22: Powerlink | C22: Qld | D22: Electricity | E22: Transmission | G22: N | I22: N | J22: N | K22: N | L22: N | M22: N | N22: Y | O22: N | P22: Y | Q22: N | R22: N | S22: Y | T22: Y | U22: N | V22: N | W22: N | X22: N
B23: SA Power Networks | C23: SA | D23: Electricity | E23: Distribution | G23: Y | I23: N | J23: N | K23: N | L23: N | M23: N | N23: Y | O23: N | P23: Y | Q23: Y | R23: Y | S23: Y | T23: N | U23: N | V23: N | W23: N | X23: N
B24: TasNetworks (D) | C24: Tas | D24: Electricity | E24: Distribution | G24: Y | I24: N | J24: N | K24: N | L24: N | M24: N | N24: N | O24: N | P24: Y | Q24: Y | R24: N | S24: Y | T24: Y | U24: N | V24: N | W24: N | X24: N
B25: TasNetworks (T) | C25: Tas | D25: Electricity | E25: Transmission | G25: N | I25: N | J25: N | K25: N | L25: N | M25: N | N25: Y | O25: N | P25: Y | Q25: N | R25: N | S25: Y | T25: Y | U25: N | V25: N | W25: N | X25: N
B26: TransGrid | C26: NSW | D26: Electricity | E26: Transmission | G26: N | I26: N | J26: N | K26: N | L26: N | M26: N | N26: Y | O26: N | P26: Y | Q26: N | R26: N | S26: Y | T26: Y | U26: N | V26: N | W26: N | X26: N
B27: United Energy | C27: Vic | D27: Electricity | E27: Distribution | G27: N | I27: N | J27: N | K27: N | L27: N | M27: N | N27: Y | O27: N | P27: Y | Q27: N | R27: N | S27: N | T27: Y | U27: N | V27: N | W27: N | X27: N
B30: Confidential
B31: Amended
B33: Worksheet 6.2 STPIS reliability
B34: Formula | F34: Applied to:
B36: =INDEX(dms_CBD_flag,MATCH(dms_TradingName,dms_TradingName_List))="NO" | F36: $D$11,$D$17,$D$23,$D$33,$D$39,$D$45,$D$55,$D$61,$D$67,$D$77,$D$83,$D$89
B37: =INDEX(dms_Urban_flag,MATCH(dms_TradingName,dms_TradingName_List))="NO" | F37: $D$12,$D$18,$D$24,$D$56,$D$62,$D$78,$D$68,$D$84
B38: =INDEX(dms_ShortRural_flag,MATCH(dms_TradingName,dms_TradingName_List))="NO" | F38: $D$13,$D$19,$D$25,$D$57,$D$63,$D$69,$D$79,$D$85
B39: =INDEX(dms_LongRural_flag,MATCH(dms_TradingName,dms_TradingName_List))="NO" | F39: $D$14,$D$20,$D$26,$D$58,$D$64,$D$65,$D$70,$D$71,$D$80,$D$86
B40: =INDEX(dms_FeederType_5_flag,MATCH(dms_TradingName,dms_TradingName_List))="NO" | F40: $D$87,$D$81,$D$71,$D$65,$D$59,$D$49,$D$43,$D$37,$D$21,$D$15
B41: =dms_MAIFI_Flag="No" | F41: $D$55:$D$72
B44: Business & other details
B45: =(INDEX(dms_Model_Span,MATCH(dms_Model,dms_Model_List))>1)
B46: =(INDEX(dms_Model_Span,MATCH(dms_Model,dms_Model_List))=1)
B49: STYLES IN USE
C50: dms_1
C51: dms_2
C52: dms_3
C53: dms_4
C54: dms_5
C55: dms_NUM
C56: dms_NUM%
C57: dms_Row_Locked
C58: dms_Row1
C59: dms_Row2
C60: dms_T1
C61: dms_T2
C62: dms_BH
C63: dms_BY1
C64: dms_BY2
C65: dms_GH
C66: dms_GY1
C67: dms_GY2
C126: 0
C127: =IFERROR(IF(dms_Model="ARR",(MAX(0,dms_0608_LastRow-dms_0608_OffsetRows)),"not an ARR"),"0") -> not an ARR

Sheet AER NRs (hidden)
B1: AER NAMED RANGES
B3: DROP DOWN SELECTORS USED IN WORKBOOKS
B5: COVER SHEET | C5: dms_DataQuality_List | D5: dms_Confid_status_List
C6: -- select -- | D6: -- select --
C7: Actual | D7: Public
C8: Estimate | D8: Confidential
C9: Consolidated
C12: For all files either AER or business needs to be able to specify the type of submission | D12: For PTRM & RFM templates we must provide a choice in case they change their form of control - otherwise it is drawn from the business specific lookup table above.
C13: dms_SourceList | D13: dms_FormControl_Choices
C14: -- select -- | D14: Revenue cap
C15: After appeal | D15: Revenue yield
C16: Draft decision | D16: Weighted average price cap
C17: Final decision
C18: PTRM update 1
C19: PTRM update 2
C20: PTRM update 3
C21: PTRM update 4
C22: PTRM update 5
C23: PTRM update 6
C24: PTRM update 7
C25: Regulatory proposal
C26: Reporting
C27: Revised regulatory proposal
K30: This is used to create an image to insert on 6.3 STPIS sheet - not for dropdown lists. | N30: GAS
B31: CA & RESET RINS DNSP | C31: dms_DNSP_020301_SubstationType | D31: dms_DNSP_020301_ProjectType | E31: dms_DNSP_020301_ProjectTrigger | F31: dms_DNSP_020302_ProjectType | G31: dms_DNSP_020302_ProjectTrigger | H31: dms_STPIS_Exclusion_List | I31: dms_Reason_Interruption | J31: dms_Reason_Interruption_Detailed | K31: Reason for interruption | N31: dms_N0205_AssetType
C32: Subtransmission substation | D32: New substation establishment | E32: Demand growth | F32: New line on new route - single circuit | G32: Demand growth | H32: Weather | I32: Animal | J32: Animal impact | K32: Animal | L32: Animal impact | N32: Cast Iron
C33: Zone substation | D33: Substation upgrade - capacity | E33: Voltage issues | F33: New line on new route - dual circuit | G33: Voltage issues | H33: Equipment failure | I33: Asset failure | J33: Animal nesting/burrowing, etc and other | L33: Animal nesting/burrowing, etc and other | N33: PVC
C34: Switching station | D34: Substation upgrade - voltage | E34: Reactive power issue | F34: New line on new route - other | G34: Reactive power issue | H34: Operational error | I34: Other | J34: Other | L34: Other | N34: Polyamide
C35: Other | D35: Other | E35: Fault level issues | F35: Line rebuild over existing route - single circuit | G35: Fault level issues | H35: Vegetation | I35: Overloads | J35: LV | K35: Asset failure | L35: LV | N35: High density polyethylene (80)
E36: Safety | F36: Line rebuild over existing route - dual circuit | G36: Net market benefit | H36: Animals | I36: Planned | J36: Distribution substation | L36: Distribution substation | N36: High density polyethylene (100)
E37: Environment | F37: Reconductor - Single circuit | G37: Safety | H37: Third party impacts | I37: Network business | J37: HV | L37: HV | N37: High density polyethylene (250)
E38: Other | F38: Reconductor - Dual circuit | G38: Environment | H38: Transmission failure | I38: Third party | J38: Zone substation | L38: Zone substation | N38: High density polyethylene (575)
F39: Reconductor - Other | G39: Other | H39: Load shedding | I39: Unknown | J39: Subtransmission | L39: Subtransmission | N39: Medium density polyethylene
F40: Line upgrade - raising/retensoring | H40: Inter-distributor connection failure | I40: Vegetation | J40: insert description of 'other' | K40: Other | L40: insert description of 'other' | N40: Unprotected steel
F41: Line upgrade - voltage upgrade | H41: Other | I41: Weather | J41: Network error | K41: Overloads | N41: Protected steel
F42: Line upgrade - capacity | I42: 2 - STPIS Exclusion (3.3)(a) | J42: Switching and protection error | K42: Planned | N42: Other
F43: String spare circuit | I43: 3 - STPIS Exclusion (3.3)(a) | J43: Fire | K43: Network business | L43: Network error
F44: Other | I44: 4 - STPIS Exclusion (3.3)(a) | J44: Other | L44: Switching and protection error
I45: 5 - STPIS Exclusion (3.3)(a) | J45: Dig-in | K45: Third party | L45: Fire
I46: 6 - STPIS Exclusion (3.3)(a) | J46: Unauthorised access | L46: Other
I47: 7 - STPIS Exclusion (3.3)(a) | J47: Vehicle impact | L47: Dig-in
J48: Unknown | L48: Unauthorised access
J49: Blow-in/Fall-in - NSP responsibility | L49: Vehicle impact
J50: Grow-in - NSP responsibility | K50: Unknown | L50: Unknown
J51: Blow-in/Fall-in - Other responsible party | K51: Vegetation | L51: Blow-in/Fall-in - NSP responsibility
J52: Grow-in - Other responsible party | L52: Grow-in - NSP responsibility
L53: Blow-in/Fall-in - Other responsible party
L54: Grow-in - Other responsible party
K55: Weather
K56: 2 - STPIS Exclusion (3.3)(a)
K57: 3 - STPIS Exclusion (3.3)(a)
K58: 4 - STPIS Exclusion (3.3)(a)
K59: 5 - STPIS Exclusion (3.3)(a)
K60: 6 - STPIS Exclusion (3.3)(a)
K61: 7 - STPIS Exclusion (3.3)(a)
B64: CA & RESET RINS TNSP | C64: dms_TNSP_0203_SubstationType | D64: dms_TNSP_020301_ProjectType | E64: dms_TNSP_020301_ProjectTrigger | F64: dms_TNSP_020302_ProjectType | G64: dms_TNSP_0203_ProjectTrigger
C65: Terminal station | D65: New substation establishment | E65: Demand growth | F65: New line on new route - single circuit | G65: Demand growth
C66: Switching station | D66: Capacity upgrade | E66: Voltage issues | F66: New line on new route - dual circuit | G66: Voltage issues
C67: Transmission substation | D67: Voltage upgrade | E67: Reactive power issue | F67: New line on new route - other | G67: Reactive power issue
C68: Other | D68: Other | E68: Fault level issues | F68: Line rebuild over existing route - single circuit | G68: Fault level issues
E69: Net market benefit | F69: Line rebuild over existing route - dual circuit | G69: Net market benefit
E70: Safety | F70: Reconductor - Single circuit | G70: Safety
E71: Environment | F71: Reconductor - Dual circuit | G71: Environment
E72: Other | F72: Reconductor - Other | G72: Other
F73: Line upgrade - raising/retensoring
F74: Line upgrade - voltage upgrade
F75: Line upgrade - capacity
F76: String spare circuit
F77: Other
B81: NAMED RANGES USED IN ETL PROCESS
B83: CA & RESET RINS DNSP ONLY | C83: dms_020303_01_UOM | D83: dms_020501_01_UOM | E83: dms_020501_02_UOM | F83: dms_020501_03_UOM | G83: dms_020501_04_UOM | H83: dms_020701_01_UOM | I83: dms_020701_02_UOM | J83: dms_020701_01_Rows | K83: dms_040102_01_UOM | L83: dms_040102_04_UOM | M83: dms_S140101_UOM | O83: dms_S140201_UOM
C84: Circuit line length in km | D84: 0's | E84: 0's | F84: 0's | G84: 0's | H84: km | I84: km | J84: Route line length within zone | K84: 0's | L84: days | M84: number | O84: number per km
C85: Circuit line length in km | D85: 0's | E85: 0's | F85: 0's | G85: 0's | H85: 0's | I85: 0's | J85: Number of maintenance spans | K85: 0's | L85: 0's | M85: number | O85: number
C86: Circuit line length in km | D86: MVA added | E86: MVA added | F86: MVA added | G86: MVA added | H86: km | I86: km | J86: Total length of maintenance spans | K86: 0's | L86: $0s | M86: number | O86: number
C87: Circuit line length in km | D87: 0's | E87: 0's | F87: 0's | G87: 0's | H87: km | I87: km | J87: Length of vegetation corridors | K87: $0s | L87: 0's | M87: km
C88: Number | D88: total spend $0s | E88: total spend $0s | F88: total spend $0s | G88: total spend $0s | H88: 0's | I88: 0's | J88: Average number of trees per maintenance span
C89: Number | D89: net circuit km added | E89: net circuit km added | F89: net circuit km added | G89: net circuit km added | H89: years | I89: years | J89: Average frequency of cutting cycle
C90: Number | D90: total spend $0s | E90: total spend $0s | F90: total spend $0s | G90: total spend $0s
D91: net circuit km added | E91: net circuit km added | F91: net circuit km added | G91: net circuit km added
D92: total spend $0s | E92: total spend $0s | F92: total spend $0s | G92: total spend $0s
D93: 0's | F93: $0s
D94: 0's
D95: 0's
D96: $0s
B99: CA & RESET RINS TNSP ONLY | C99: dms_020701_01_UOM
C100: km
C101: 0's
C102: km
C103: 0's
C104: km
C105: metres
C106: years
B109: CA & RESET RINS DNSP & TNSP | C109: dms_020603_01_UOM
C110: 0's
C111: 0's
C112: 0's
C113: 0's
C114: (per cent)
B117: EB & RESET RINS DNSP ONLY | C117: dms_030601_01_UOM | D117: dms_030601_02_UOM | E117: dms_030701_01_UOM | F117: dms_030702_01_UOM | G117: dms_030703_01_UOM
C118: minutes/customer | D118: minutes/customer | E118: Customer / km | F118: % | G118: km
C119: minutes/customer | D119: minutes/customer | E119: MWh/customer | F119: Number of spans
C120: interruptions/customer | D120: interruptions/customer | E120: kVA / customer | F120: Number of spans
C121: interruptions/customer | D121: interruptions/customer | F121: Number of spans
F122: Number of spans
F123: Years
F124: Years
F125: Trees
F126: Trees
F127: Defects
F128: Defects
F129: Spans
F130: km
F131: Spans
C133: WHEN INSERTING COVER SHEET INTO A TNSP FILE - APPLY THESE NAMED RANGES
B134: EB & RESET RINS TNSP ONLY | C134: dms_030601_01_UOM | E134: dms_030701_01_UOM | F134: dms_030702_01_UOM
C135: % | E135: Number of spans | F135: km
C136: number | E136: Years | F136: %
C137: number | E137: Trees | F137: km
C138: % | E138: Defects | F138: number
C139: number | E139: Number of spans
C140: number | E140: km
C141: % | E141: km
C142: number | E142: Number of spans
C143: number
C144: %
C145: number
C146: %
C147: number
C148: %
C149: number
B151: EB & RESET RINS DNSP & TNSP | C151: dms_EB_RAB_PIT
C152: Beginning of year
C153: End of year
C154: End of year
C155: End of year
C156: End of year
C157: End of year
B159: ARR DNSP ONLY | C159: dms_030605_UOM | D159: dms_03060703_UOM | E159: Spare | F159: Spare
C160: number | D160: number
C161: number | D161: number
C162: number | D162: number
C163: number | D163: number
C164: number | D164: (per cent)
C165: number
C166: number
C167: number
C168: number
C169: number
C170: number
C171: number
C172: (per cent)
C173: (per cent)
B175: RFM | C175: dms_Beg | D175: dms_Mid | E175: dms_End
C176: Beginning of year | D176: Mid year | E176: End of Year
B178: PTRM | C178: dms_PTRM_RAB_PIT | D178: dms_PTRM_TAB_PIT | E178: DMS_Xfactor
C179: Beginning of year | D179: Beginning of year | E179: x factors
C180: End of year | D180: End of year
C181: End of year | D181: End of year
C182: End of year | D182: End of year
C183: End of year
B186: STPIS & MIC NAMED RANGES
B188: These "row descriptions" are the column headings in the various templates but become row descriptions in the ETL process
B190: Table 6.3 sustained interruptions - row descriptions | C190: dms_060301_CustNo_Affected_Row | D190: dms_060301_Avg_Duration_Sustained_Int_Row | E190: dms_060301_Effect_unplanned_SAIDI_Row | F190: dms_060301_Effect_unplanned_SAIFI_Row
C191: Number of customers affected by the interruption | D191: Average duration of sustained customer interruption | E191: Effect on unplanned SAIDI | F191: Effect on unplanned SAIFI
B194: Table 6.1 telephone answering - row descriptions and start date | C194: dms_060101_Rows | D194: dms_060102_Rows | E194: dms_060101_StartDateTxt
C195: Total number of calls (after removing excluded events) | D195: Number of calls answered within 30 seconds (after excluding excluded events) | E195: =dms_060701_StartDateTxt -> 1-Jul-2014
B198: Table 6.8.1 - row descriptions | C198: dms_060801_01_Rows | D198: dms_060801_02_Rows | E198: dms_060801_03_Rows | F198: dms_060801_04_Rows
C199: Number of interruptions | D199: Duration of interruptions | E199: Total unplanned minutes off supply | F199: Effect on unplanned MAIFI
B202: Table 7.9.4 - market impact component - row descriptions | C202: dms_070904_01_Rows | D202: without exclusions | E202: with exclusions
B205: These headings (Lists) are determined from the INDEX/MATCH function on the NSP selected on the Business & other details sheet
B207: Table 6.7.1 - daily performance data - unplanned - MAIFI -- row descriptions and header named range values | C207: dms_060701_Feeder_Header_Lvl4 | D207: =INDEX(dms_FeederName_1,MATCH(dms_TradingName,dms_TradingName_List)) -> CBD | E207: =INDEX(dms_FeederName_1,MATCH(dms_TradingName,dms_TradingName_List)) -> CBD | F207: =INDEX(dms_FeederName_2,MATCH(dms_TradingName,dms_TradingName_List)) -> Urban | G207: =INDEX(dms_FeederName_2,MATCH(dms_TradingName,dms_TradingName_List)) -> Urban | H207: =INDEX(dms_FeederName_3,MATCH(dms_TradingName,dms_TradingName_List)) -> Short rural | I207: =INDEX(dms_FeederName_3,MATCH(dms_TradingName,dms_TradingName_List)) -> Short rural | J207: =INDEX(dms_FeederName_4,MATCH(dms_TradingName,dms_TradingName_List)) -> Long rural | K207: =INDEX(dms_FeederName_4,MATCH(dms_TradingName,dms_TradingName_List)) -> Long rural | L207: =IF((INDEX(dms_FeederName_5,MATCH(dms_TradingName,dms_TradingName_List))=0),"Network",(INDEX(dms_FeederName_5,MATCH(dms_TradingName,dms_TradingName_List)))) -> Network | M207: =IF((INDEX(dms_FeederName_5,MATCH(dms_TradingName,dms_TradingName_List))=0),"Network",(INDEX(dms_FeederName_5,MATCH(dms_TradingName,dms_TradingName_List)))) -> Network | N207: Network | O207: Network
C209: dms_060701_Rows | D209: All events | E209: After removing excluded events | F209: All events | G209: After removing excluded events | H209: All events | I209: After removing excluded events | J209: All events | K209: After removing excluded events | L209: All events | M209: After removing excluded events | N209: All events | O209: After removing excluded events
D210: the number of column headings changes from 10 to 12 depending on the number of feeder categories for the NSP
C212: dms_0603_FeederList | D212: =INDEX(dms_FeederName_1,MATCH(dms_TradingName,dms_TradingName_List)) -> CBD | E212: =INDEX(dms_FeederName_2,MATCH(dms_TradingName,dms_TradingName_List)) -> Urban | F212: =INDEX(dms_FeederName_3,MATCH(dms_TradingName,dms_TradingName_List)) -> Short rural | G212: =INDEX(dms_FeederName_4,MATCH(dms_TradingName,dms_TradingName_List)) -> Long rural
B215: Use these to add to specific worksheets in existing files | C215: Use these to add to specific worksheets in existing files
B218: ARRs 6.7 STPIS daily performance | C218: dms_060101_Values | D218: dms_060102_Values | E218: dms_060701_Values
C219: dms_LeapYear
B222: ARR's 6.8 STPIS exclusions | C222: dms_060801_Event_Date | D222: dms_060801_OutageID | E222: dms_060801_FeederID | F222: dms_060801_FeederClass | G222: dms_060801_CauseID | H222: dms_060801_01_Values | I222: dms_060801_02_Values | J222: dms_060801_03_Values | K222: dms_060801_Excl_Cat | L222: dms_060801_04_Values
C223: dms_060801_StartCell
B226: CA 6.3 sustained interruptions | C226: dms_060301_Event_Date | D226: dms_060301_Event_Time | E226: dms_060301_AssetID | F226: dms_060301_FeederClass | G226: dms_060301_Reason | H226: dms_060301_DetailedReason | I226: dms_060301_CustNo_Affected_Values | J226: dms_060301_Avg_Duration_Sustained_Int_Values | K226: dms_060301_Effect_unplanned_SAIDI_Values | L226: dms_060301_Effect_unplanned_SAIFI_Values | M226: dms_060301_MED

Sheet AER lookups (hidden)
B1: AER LOOKUP TABLES
B3: Data in these columns used for data validation and database purposes.
B4: Date last modified: | C4: 2017-01-16 | D4: added (Albury and Victora) for AGN
C5: 2016-10-17 | D5: updated TransGrid's correct legal name, corrected TasNetworks (T) to June financial year
C6: 2017-02-01 | D6: inserted Power and Water, added NRs (dms_FeederCat_1 and dms_FeederCat_2)
C7: 2017-03-03 | D7: inserted AEMO as a business | AC7: FOR ELECTRICITY BUSINESSES ONLY
C8: 2018-03-28 | D8: major changes to accommodate STPIS
C9: Template Version | D9: 5 | AC9: Feeder Types | AG9: TasNetworks (D) | AH9: MAIFI flag | AI9: Feeder Names
AC11: CBD | AD11: Urban | AE11: Short rural | AF11: long rural | AG11: EXTRA
B12: dms_TradingName_List | C12: dms_TradingNameFull_List | D12: dms_ABN_List | E12: dms_JurisdictionList | F12: dms_Sector_List | G12: dms_Segment_List | H12: dms_FormControl_List | I12: dms_RPT_List | J12: dms_RPTMonth_List | K12: dms_CRCPlength_List | L12: dms_FRCPlength_List | M12: dms_PRCPlength_List | N12: dms_663_List | O12: dms_DeterminationRef_List | P12: dms_Addr1_List | Q12: dms_Addr2_List | R12: dms_Suburb_List | S12: dms_State_List | T12: dms_PostCode_List | U12: dms_PAddr1_List | V12: dms_PAddr2_List | W12: dms_PSuburb_List | X12: dms_PState_List | Y12: dms_PPostCode_List | Z12: dms_ContactName1_List | AA12: dms_ContactPh1_List | AB12: dms_ContactEmail_List | AC12: dms_CBD_flag | AD12: dms_Urban_flag | AE12: dms_ShortRural_flag | AF12: dms_LongRural_flag | AG12: dms_FeederType_5_flag | AH12: dms_MAIFI_flag_List | AI12: dms_FeederName_1 | AJ12: dms_FeederName_2 | AK12: dms_FeederName_3 | AL12: dms_FeederName_4 | AM12: dms_FeederName_5 | AN12: dms_Public_Lighting_List | AO12: Column1
B13: Amadeus | C13: APT Pipelines (NT) Pty Ltd t/a Amadeus | D13: 39009737393 | E13: NT | F13: Gas | G13: Transmission | H13: Weighted average price cap | I13: Financial | J13: June | K13: 5 | L13: 5 | M13: 5 | N13: x | O13: n/a | P13: Level 19, HSBC Building | Q13: 580 George Street | R13: SYDNEY | S13: NSW | T13: 2000 | U13: Level 19, HSBC Building | V13: 580 George Street | W13: SYDNEY | X13: NSW | Y13: 2000 | Z13: Alexandra Curran | AA13: 02 9275 0020 | AB13: alexandra.curran@apa.com.au | AC13: NO | AD13: NO | AE13: NO | AF13: NO | AG13: NO | AH13: - | AI13: CBD | AJ13: Urban | AK13: Short rural | AL13: Long rural | AN13: NO | AO13: Amadeus
B14: APA GasNet | C14: APA GasNet Australia (Operations) Pty Ltd | D14: 065083009 | E14: Vic | F14: Gas | G14: Transmission | H14: Weighted average price cap | I14: Calendar | J14: December | K14: 5 | L14: 5 | M14: 5 | N14: x | P14: Level 19, HSBC Building | Q14: 580 George Street | R14: SYDNEY | S14: NSW | T14: 2000 | U14: PO Box R41 | W14: ROYAL EXCHANGE | X14: NSW | Y14: 1225 | Z14: Alexandra Curran | AA14: 02 9275 0020 | AB14: alexandra.curran@apa.com.au | AC14: NO | AD14: NO | AE14: NO | AF14: NO | AG14: NO | AH14: - | AI14: CBD | AJ14: Urban | AK14: Short rural | AL14: Long rural | AN14: NO | AO14: APA GasNet
B15: Australian Transmission Co. (Gas) | C15: Australian Transmission Co. (Gas) | D15: 11222333444 | E15: - | F15: Gas | G15: Transmission | H15: Revenue cap | I15: Financial | J15: June | K15: 5 | L15: 5 | M15: 5 | N15: 5 | O15: transmission determination | P15: 123 Straight Street | R15: SYDNEY | S15: NSW | T15: 2000 | U15: PO Box 123 | W15: SYDNEY | X15: NSW | Y15: 2000 | Z15: NO | AA15: NO | AB15: NO | AC15: NO | AD15: NO | AE15: - | AF15: CBD | AG15: Urban | AH15: Short rural | AI15: Long rural | AK15: NO | AL15: Australian Transmission Co. (Gas)
B16: Central Ranges Pipeline (T) | C16: Central Ranges Pipeline Pty Ltd | D16: 108218355 | E16: NSW | F16: Gas | G16: Transmission | H16: Weighted average price cap | I16: Financial | J16: June | K16: 14 | L16: 5 | M16: 5 | N16: 5 | O16: transmission determination | P16: Level 19 | Q16: 580 George Street | R16: SYDNEY | S16: NSW | T16: 2000 | U16: PO Box R41 | W16: ROYAL EXCHANGE | X16: NSW | Y16: 1225 | Z16: Scott Young | AA16: 02 9275 0031 | AB16: scott.young@apa.com.au | AC16: NO | AD16: NO | AE16: NO | AF16: NO | AG16: NO | AH16: - | AI16: CBD | AJ16: Urban | AK16: Short rural | AL16: Long rural | AN16: NO
B17: Roma to Brisbane Pipeline | C17: APT Petroleum Pipelines Limited t/a Roma to Brisbane Pipeline | D17: 009 737 393 | E17: Qld | F17: Gas | G17: Transmission | H17: Weighted average price cap | I17: Financial | J17: June | K17: 5 | L17: 5 | M17: 5 | N17: x | O17: n/a | P17: 580 George Street | R17: SYDNEY | S17: NSW | T17: 2000 | U17: PO Box R41 | W17: ROYAL EXCHANGE | X17: NSW | Y17: 1225 | Z17: Mark Allen | AA17: 02 9275 0010 | AB17: mark.allen@apa.com.au | AC17: NO | AD17: NO | AE17: NO | AF17: NO | AG17: NO | AH17: - | AI17: CBD | AJ17: Urban | AK17: Short rural | AL17: Long rural | AN17: NO | AO17: Roma to Brisbane Pipeline
B22: The Reg Year Ending (dms_RYE) must be set to the last year of the regulatory period. For forecast data is is usually (FRCP_y5) for actual it is a single year (CRY). For historical actual data the RYE will need to be set manually in the business details sheet by setting the dms_Multiyear_flag to 1 and putting the correct value in 'dms_Specified_FinalYear. See cells C67:C68
B23: dms_Model_List | C23: dms_Model_Name_Format1 | D23: dms_Worksheet_List | E23: dms_Model_Span_List
B24: ARR | C24: Annual Reporting | D24: =IF(dms_MultiYear_ResponseFlag="yes","NEW HISTORICAL ANNUAL REPORTING","ANNUAL REPORTING") -> ANNUAL REPORTING | E24: 1
B25: CA | C25: Category Analysis | D25: =IF(dms_MultiYear_ResponseFlag="yes","NEW HISTORICAL CATEGORY ANALYSIS","CATEGORY ANALYSIS") -> CATEGORY ANALYSIS | E25: 1
B26: CESS | C26: Capitlal Expenditure | D26: CAPITLAL EXPENDITURE SHARING SCHEMING | E26: 5
B27: CPI | C27: CPI | D27: CPI | E27: 5
B28: EB | C28: Economic Benchmarking | D28: =IF(dms_MultiYear_ResponseFlag="yes","NEW HISTORICAL ECONOMIC BENCHMARKING","ECONOMIC BENCHMARKING") -> ECONOMIC BENCHMARKING | E28: 1
B29: Pricing | C29: Pricing Proposal | D29: PRICING PROPOSAL | E29: 5
B30: PTRM | C30: Post Tax Revenue Model | D30: POST TAX REVENUE MODEL | E30: 5
B31: Reset | C31: Regulatory Reporting (Reset) | D31: REGULATORY REPORTING STATEMENT | E31: 5
B32: RFM | C32: Roll Forward Model | D32: ROLL FORWARD MODEL | E32: 5
B33: WACC | C33: Weighted Average Cost of Capital | D33: WEIGHTED AVERAGE COST OF CAPITAL | E33: 1
B37: Financial | C37: Calendar | E37: PREVIOUS | G37: CURRENT | I37: FORTHCOMING
B38: 1987-88 | C38: 1988 | D38: PRCP_y1 | E38: =INDEX(INDIRECT(dms_RPT),dms_PRCP_start_row) -> 2011-12 | F38: CRCP_y1 | G38: =INDEX(INDIRECT(dms_RPT),dms_CRCP_start_row) -> 2016-17 | H38: =FRCP_y1 -> 2021-22 | I38: =INDEX(INDIRECT(dms_RPT),dms_FRCP_start_row) -> 2021-22
B39: 1988-89 | C39: 1989 | D39: PRCP_y2 | E39: =INDEX(INDIRECT(dms_RPT),dms_PRCP_start_row+1) -> 2012-13 | F39: CRCP_y2 | G39: =INDEX(INDIRECT(dms_RPT),dms_CRCP_start_row+1) -> 2017-18 | H39: FRCP_y2 | I39: =INDEX(INDIRECT(dms_RPT),dms_FRCP_start_row+1) -> 2022-23
B40: 1989-90 | C40: 1990 | D40: PRCP_y3 | E40: =INDEX(INDIRECT(dms_RPT),dms_PRCP_start_row+2) -> 2013-14 | F40: CRCP_y3 | G40: =INDEX(INDIRECT(dms_RPT),dms_CRCP_start_row+2) -> 2018-19 | H40: FRCP_y3 | I40: =INDEX(INDIRECT(dms_RPT),dms_FRCP_start_row+2) -> 2023-24
B41: 1990-91 | C41: 1991 | D41: PRCP_y4 | E41: =INDEX(INDIRECT(dms_RPT),dms_PRCP_start_row+3) -> 2014-15 | F41: CRCP_y4 | G41: =INDEX(INDIRECT(dms_RPT),dms_CRCP_start_row+3) -> 2019-20 | H41: FRCP_y4 | I41: =INDEX(INDIRECT(dms_RPT),dms_FRCP_start_row+3) -> 2024-25
B42: 1991-92 | C42: 1992 | D42: PRCP_y5 | E42: =INDEX(INDIRECT(dms_RPT),dms_PRCP_start_row+4) -> 2015-16 | F42: CRCP_y5 | G42: =INDEX(INDIRECT(dms_RPT),dms_CRCP_start_row+4) -> 2020-21 | H42: FRCP_y5 | I42: =INDEX(INDIRECT(dms_RPT),dms_FRCP_start_row+4) -> 2025-26
B43: 1992-93 | C43: 1993 | D43: PRCP_y6 | E43: =INDEX(INDIRECT(dms_RPT),dms_PRCP_start_row+5) -> 2016-17 | F43: CRCP_y6 | G43: =INDEX(INDIRECT(dms_RPT),dms_CRCP_start_row+5) -> 2021-22 | H43: FRCP_y6 | I43: =INDEX(INDIRECT(dms_RPT),dms_FRCP_start_row+5) -> 2026-27
B44: 1993-94 | C44: 1994 | D44: PRCP_y7 | E44: =INDEX(INDIRECT(dms_RPT),dms_PRCP_start_row+6) -> 2017-18 | F44: CRCP_y7 | G44: =INDEX(INDIRECT(dms_RPT),dms_CRCP_start_row+6) -> 2022-23 | H44: FRCP_y7 | I44: =INDEX(INDIRECT(dms_RPT),dms_FRCP_start_row+6) -> 2027-28
B45: 1994-95 | C45: 1995 | D45: PRCP_y8 | E45: =INDEX(INDIRECT(dms_RPT),dms_PRCP_start_row+7) -> 2018-19 | F45: CRCP_y8 | G45: =INDEX(INDIRECT(dms_RPT),dms_CRCP_start_row+7) -> 2023-24 | H45: FRCP_y8 | I45: =INDEX(INDIRECT(dms_RPT),dms_FRCP_start_row+7) -> 2028-29
B46: 1995-96 | C46: 1996 | D46: PRCP_y9 | E46: =INDEX(INDIRECT(dms_RPT),dms_PRCP_start_row+8) -> 2019-20 | F46: CRCP_y9 | G46: =INDEX(INDIRECT(dms_RPT),dms_CRCP_start_row+8) -> 2024-25 | H46: FRCP_y9 | I46: =INDEX(INDIRECT(dms_RPT),dms_FRCP_start_row+8) -> 2029-30
B47: 1996-97 | C47: 1997 | D47: PRCP_y10 | E47: =INDEX(INDIRECT(dms_RPT),dms_PRCP_start_row+9) -> 2020-21 | F47: CRCP_y10 | G47: =INDEX(INDIRECT(dms_RPT),dms_CRCP_start_row+9) -> 2025-26 | H47: FRCP_y10 | I47: =INDEX(INDIRECT(dms_RPT),dms_FRCP_start_row+9) -> 2030-31
B48: 1997-98 | C48: 1998 | D48: PRCP_y11 | E48: =INDEX(INDIRECT(dms_RPT),dms_PRCP_start_row+10) -> 2021-22 | F48: CRCP_y11 | G48: =INDEX(INDIRECT(dms_RPT),dms_CRCP_start_row+10) -> 2026-27 | H48: FRCP_y11 | I48: =INDEX(INDIRECT(dms_RPT),dms_FRCP_start_row+10) -> 2031-32
B49: 1998-99 | C49: 1999 | D49: PRCP_y12 | E49: =INDEX(INDIRECT(dms_RPT),dms_PRCP_start_row+11) -> 2022-23 | F49: CRCP_y12 | G49: =INDEX(INDIRECT(dms_RPT),dms_CRCP_start_row+11) -> 2027-28 | H49: FRCP_y12 | I49: =INDEX(INDIRECT(dms_RPT),dms_FRCP_start_row+11) -> 2032-33
B50: 1999-00 | C50: 2000 | D50: PRCP_y13 | E50: =INDEX(INDIRECT(dms_RPT),dms_PRCP_start_row+12) -> 2023-24 | F50: CRCP_y13 | G50: =INDEX(INDIRECT(dms_RPT),dms_CRCP_start_row+12) -> 2028-29 | H50: FRCP_y13 | I50: =INDEX(INDIRECT(dms_RPT),dms_FRCP_start_row+12) -> 2033-34
B51: 2000-01 | C51: 2001 | D51: PRCP_y14 | E51: =INDEX(INDIRECT(dms_RPT),dms_PRCP_start_row+13) -> 2024-25 | F51: CRCP_y14 | G51: =INDEX(INDIRECT(dms_RPT),dms_CRCP_start_row+13) -> 2029-30 | H51: FRCP_y14 | I51: =INDEX(INDIRECT(dms_RPT),dms_FRCP_start_row+13) -> 2034-35
B52: 2001-02 | C52: 2002 | D52: PRCP_y15 | E52: =INDEX(INDIRECT(dms_RPT),dms_PRCP_start_row+14) -> 2025-26 | F52: CRCP_y15 | G52: =INDEX(INDIRECT(dms_RPT),dms_CRCP_start_row+14) -> 2030-31 | H52: FRCP_y15 | I52: =INDEX(INDIRECT(dms_RPT),dms_FRCP_start_row+14) -> 2035-36
B53: 2002-03 | C53: 2003 | D53: PRCP_y16 | E53: =INDEX(INDIRECT(dms_RPT),dms_PRCP_start_row+15) -> 2026-27 | F53: CRCP_y16 | G53: =INDEX(INDIRECT(dms_RPT),dms_CRCP_start_row+15) -> 2031-32 | H53: FRCP_y16 | I53: =INDEX(INDIRECT(dms_RPT),dms_FRCP_start_row+15) -> 2036-37
B54: 2003-04 | C54: 2004
B55: 2004-05 | C55: 2005
B56: 2005-06 | C56: 2006 | E56: CRY - FRY
B57: 2006-07 | C57: 2007 | D57: dms_y1 | E57: =IFERROR(INDEX(INDIRECT(dms_RPT),dms_CRY_start_row),0) -> 2019-20
B58: 2007-08 | C58: 2008 | D58: dms_y2 | E58: =IFERROR(INDEX(INDIRECT(dms_RPT),dms_CRY_start_row+1),0) -> 2020-21
B59: 2008-09 | C59: 2009 | D59: dms_y3 | E59: =IFERROR(INDEX(INDIRECT(dms_RPT),dms_CRY_start_row+2),0) -> 2021-22
B60: 2009-10 | C60: 2010 | D60: dms_y4 | E60: =IFERROR(INDEX(INDIRECT(dms_RPT),dms_CRY_start_row+3),0) -> 2022-23
B61: 2010-11 | C61: 2011 | D61: dms_y5 | E61: =IFERROR(INDEX(INDIRECT(dms_RPT),dms_CRY_start_row+4),0) -> 2023-24
B62: 2011-12 | C62: 2012 | D62: dms_y6 | E62: =IFERROR(INDEX(INDIRECT(dms_RPT),dms_CRY_start_row+5),0) -> 2024-25
B63: 2012-13 | C63: 2013 | D63: dms_y7 | E63: =IFERROR(INDEX(INDIRECT(dms_RPT),dms_CRY_start_row+6),0) -> 2025-26
B64: 2013-14 | C64: 2014 | D64: dms_y8 | E64: =IFERROR(INDEX(INDIRECT(dms_RPT),dms_CRY_start_row+7),0) -> 2026-27
B65: 2014-15 | C65: 2015 | D65: dms_y9 | E65: =IFERROR(INDEX(INDIRECT(dms_RPT),dms_CRY_start_row+8),0) -> 2027-28
B66: 2015-16 | C66: 2016 | D66: dms_y10 | E66: =IFERROR(INDEX(INDIRECT(dms_RPT),dms_CRY_start_row+9),0) -> 2028-29
B67: 2016-17 | C67: 2017 | D67: dms_y11 | E67: =IFERROR(INDEX(INDIRECT(dms_RPT),dms_CRY_start_row+10),0) -> 2029-30
B68: 2017-18 | C68: 2018 | D68: dms_y12 | E68: =IFERROR(INDEX(INDIRECT(dms_RPT),dms_CRY_start_row+11),0) -> 2030-31
B69: 2018-19 | C69: 2019 | D69: dms_y13 | E69: =IFERROR(INDEX(INDIRECT(dms_RPT),dms_CRY_start_row+12),0) -> 2031-32
B70: 2019-20 | C70: 2020 | D70: dms_y14 | E70: =IFERROR(INDEX(INDIRECT(dms_RPT),dms_CRY_start_row+13),0) -> 2032-33
B71: 2020-21 | C71: 2021 | D71: dms_y15 | E71: =IFERROR(INDEX(INDIRECT(dms_RPT),dms_CRY_start_row+14),0) -> 2033-34
B72: 2021-22 | C72: 2022 | D72: dms_y16 | E72: =IFERROR(INDEX(INDIRECT(dms_RPT),dms_CRY_start_row+15),0) -> 2034-35
B73: 2022-23 | C73: 2023
B74: 2023-24 | C74: 2024
B75: 2024-25 | C75: 2025
B76: 2025-26 | C76: 2026
B77: 2026-27 | C77: 2027
B78: 2027-28 | C78: 2028
B79: 2028-29 | C79: 2029
B80: 2029-30 | C80: 2030
B81: 2030-31 | C81: 2031
B82: 2031-32 | C82: 2032
B83: 2032-33 | C83: 2033
B84: 2033-34 | C84: 2034
B85: 2034-35 | C85: 2035
B86: 2035-36 | C86: 2036
B87: 2036-37 | C87: 2037

Sheet AER ETL (hidden)
B1: AER ETL INFORMATION
B3: USES NAMED RANGES FLAG | C3: yes | D3: dms_Defined_Names_Used
B5: IF THIS IS AN ABC RIN - make sure the the named range CRY is applied and the named range dms_dollar_nom_UOM is applied
B6: IF THIS IS A RESET RIN - make sure the named ranges CRY and dms_dollar_nom_UOM are NOT present in the workbook
B7: FOR ABC RINS THAT SPAN MULTIPLE YEARS - make sure MultiYear Flag is set and final year entered as required
B9: Full trading name | C9: =INDEX(dms_TradingNameFull_List,MATCH(dms_TradingName,dms_TradingName_List)) -> APT Pipelines (NT) Pty Ltd t/a Amadeus | E9: dms_TradingNameFull
B10: Trading name | C10: =dms_TradingName -> Amadeus
A11: Selected here | B11: Model / RIN | C11: Reset | D11: dms_Model
A12: Read from Business & other details | B12: Source | C12: ='Business & other details'!AL64 -> Regulatory proposal | D12: dms_Source
B13: Data quality | C13: =dms_Selected_Quality -> Consolidated | D13: dms_DQ_1
B14: Data status | C14: =dms_Selected_Status -> Public | D14: dms_DQ_2
B15: Amendment reason | C15: =dms_Amendment_Text -> . | F15: dms_AmendmentReason
B16: Submission date | C16: =dms_Typed_Submission_Date -> 2020-07-01 | D16: dms_SubmissionDate
A18: Redundant | B18: EBSS - First application of scheme in forthcoming period? | C18: No
A19: Pre-populated from lookup table | B19: Data ingestion data quality | C19: =dms_Selected_Quality -> Consolidated | D19: dms_DataQuality | E19: =IF(dms_DQ_2="Confidential","Consolidated","Public")
B20: Sector | C20: =INDEX(dms_Sector_List,MATCH(dms_TradingName,dms_TradingName_List)) -> Gas | D20: dms_Sector | E20: =INDEX(dms_Sector_List,MATCH(dms_TradingName,dms_TradingName_List))
B21: Segment | C21: =INDEX(dms_Segment_List,MATCH(dms_TradingName,dms_TradingName_List)) -> Transmission | D21: dms_Segment | E21: =INDEX(dms_Segment_List,MATCH(dms_TradingName,dms_TradingName_List))
B22: Regulatory Year Ending | C22: =dms_RYE_result -> 2026 | D22: dms_RYE | E22: =IF(dms_MultiYear_Flag=1,LEFT(dms_Specified_FinalYear,2)&RIGHT(dms_Specified_FinalYear,2),INDEX(dms_RYE_Formula_Result,MATCH(dms_Model,dms_Model_List)))
B23: Reporting Period Type | C23: =INDEX(dms_RPT_List,MATCH(dms_TradingName,dms_TradingName_List)) -> Financial | D23: dms_RPT | E23: =INDEX(dms_RPT_List,MATCH(dms_TradingName,dms_TradingName_List))
B24: EB/CA Unit of Measure for Monetary Values | C24: $0s | D24: dms_dollar_nom_UOM | E24: If the cover sheet is attached to an ABC RIN apply the NAMED RANGE to the cell
B25: Security Classification | C25: Public | D25: dms_Classification | E25: Always Public
B26: Jurisdiction | C26: =INDEX(dms_JurisdictionList,MATCH(dms_TradingName,dms_TradingName_List)) -> NT | D26: dms_Jurisdiction | E26: =INDEX(dms_JurisdictionList,MATCH(dms_TradingName,dms_TradingName_List))
A27: Relevant for PTRM, RFMs and Reset RINS | B27: $ REAL REFERENCES
B28: Does the named range CRY exist in this file? | C28: =IFERROR(CRY,"NO") -> NO
B29: CRY-1 (last full calendar year before CRY) | C29: =IFERROR(IF(dms_RPT="calendar",CRY-1,LEFT(CRY,4)),"CRY not present") -> CRY not present | D29: dms_Cal_Year_B4_CRY | E29: '=IF(dms_RPT="financial",VALUE(LEFT(dms_SingleYear_FinalYear_Result,4)),VALUE(LEFT(dms_SingleYear_FinalYear_Result,4)-1))
B30: Dollar $ real month | C30: =INDEX(dms_RPTMonth_List,MATCH(dms_TradingName,dms_TradingName_List)) -> June | D30: dms_RPTMonth | E30: =INDEX(dms_RPTMonth_List,MATCH(dms_TradingName,dms_TradingName_List))
B31: Dollar $ real (the last month before the FRCP_y1) | C31: =IF(dms_SingleYearModel="yes",CONCATENATE(dms_RPTMonth)&" "&VALUE((LEFT(CRY,2))&RIGHT(CRY,2)),CONCATENATE(dms_RPTMonth)&" "&dms_DollarReal_year) -> June 2021 | D31: dms_DollarReal | E31: =IF(SUM(dms_SingleYear_Model)>0,CONCATENATE(dms_RPTMonth)&" "&VALUE((LEFT(CRY,2))&RIGHT(CRY,2)),CONCATENATE(dms_RPTMonth)&" "&VALUE((LEFT(dms_RYE,2)&RIGHT(dms_RYE,2))))
B32: Dollar $ real previous year (PRCP_y5) | C32: =IF(dms_SingleYearModel="yes",CONCATENATE(dms_RPTMonth)&" "&VALUE((LEFT(CRY,2))&RIGHT(CRY,2)),CONCATENATE(dms_RPTMonth)&" "&dms_Previous_DollarReal_year) -> June 2016 | D32: dms_DollarReal_Prev | E32: =IF(SUM(dms_SingleYear_Model)>0,CONCATENATE(dms_RPTMonth)&" "&VALUE(((LEFT(CRY,2))&RIGHT(CRY,2))-1),CONCATENATE(dms_RPTMonth)&" "&VALUE(((LEFT(dms_CRCP_FirstYear_Result,2)&RIGHT(dms_CRCP_FirstYear_Result,2))))-1)
B33: PTRM/ RFMs
B34: Form of control | C34: =INDEX(dms_FormControl_List,MATCH(dms_TradingName,dms_TradingName_List)) -> Weighted average price cap | D34: dms_FormControl | E34: =INDEX(dms_FormControl_List,MATCH(dms_TradingName,dms_TradingName_List))
A35: All potential values for Regulatory Years or RYEs as calculated | B35: This block works out the various RYE's for ALL RIN types and MODELS
B36: dms_start_year | C36: =FRCP_y1 -> 2021-22 | D36: FRCP_y1 from cover sheet
B37: dms_CRY_start_year | C37: =IFERROR(CRY,CRCP_y4) -> 2019-20
B38: dms_CRY_start_row | C38: =IFERROR(MATCH(dms_CRY_start_year,INDIRECT(dms_RPT),0),0) -> 33
B39: dms_FRCP_start_row | C39: =MATCH(dms_start_year,INDIRECT(dms_RPT),0) -> 35 | D39: Uses FRCP_y1 as a start reference
B40: dms_CRCP_start_row | C40: =dms_FRCP_start_row-dms_CRCPlength_Num -> 30 | D40: Uses the value in dms_CRCPlength_Num
B41: dms_PRCP_start_row | C41: =dms_FRCP_start_row-dms_CRCPlength_Num-dms_PRCPlength_Num -> 25 | D41: Uses the value in dms_CRCPlength_Num and dms_PRCPlength_Num
B42: dms_RYE_start_row | C42: =dms_FRCP_start_row+(dms_FRCPlength_Num-1) -> 39 | D42: Uses the value in dms_FRCPlength_Num-1
B43: FRCP_start_year | C43: =INDEX(INDIRECT(dms_RPT),dms_FRCP_start_row) -> 2021-22 | D43: Converts the FRCP start row to display the year
B44: CRCP_start_year | C44: =INDEX(INDIRECT(dms_RPT),dms_CRCP_start_row) -> 2016-17 | D44: Converts the CRCP start row to display the year
B45: PRCP_start_year | C45: =INDEX(INDIRECT(dms_RPT),dms_PRCP_start_row) -> 2011-12 | D45: Converts the PRCP start row to display the year
B46: FRCP_final_year | C46: =INDEX(INDIRECT(dms_RPT),dms_FRCP_start_row+dms_FRCPlength_Num-1) -> 2025-26 | D46: Finds the FRCP final year
B47: CRCP_final_year | C47: =INDEX(INDIRECT(dms_RPT),dms_CRCP_start_row+dms_CRCPlength_Num-1) -> 2020-21 | D47: Finds the CRCP final year
B48: PRCP_final_year | C48: =INDEX(INDIRECT(dms_RPT),dms_PRCP_start_row+dms_FRCPlength_Num-1) -> 2015-16 | D48: Finds the PRCP final year
B49: dms_Reset_final_year | C49: =INDEX(INDIRECT(dms_RPT),dms_RYE_start_row) -> 2025-26 | D49: For Resets and PTRM/RFMs (same as FRCP_final_year)
B50: dms_SpecifiedYear_final_year | C50: =FRY -> 2025-26 | D50: FRY from cover sheet
B51: dms_DollarReal_year | C51: =LEFT(CRCP_final_year,2)&RIGHT(CRCP_final_year,2) -> 2021 | D51: Uses the value in CRCP_final_year
B52: dms_Previous_DollarReal_year | C52: =LEFT(PRCP_final_year,2)&RIGHT(PRCP_final_year,2) -> 2016 | D52: Uses the value in PRCP_final_year
B53: dms_CRY_RYE | C53: =IFERROR(LEFT(CRY,2)&RIGHT(CRY,2),0) -> 0 | D53: For ABC single year RINS
B54: dms_Reset_RYE | C54: =IF(dms_Model_Span>1,IF(dms_Model="RFM",(LEFT(dms_DollarReal_year,2)&RIGHT(dms_DollarReal_year,2)),(LEFT(dms_Reset_final_year,2)&RIGHT(dms_Reset_final_year,2))),0) -> 2026 | D54: If model span > 1 then uses dms_Reset_RYE otherwise it's a multi year ABC and uses dms_Specified_RYE
B55: dms_Specified_RYE | C55: =IF(dms_MultiYear_ResponseFlag="Yes",(LEFT(dms_Specified_FinalYear,2)&RIGHT(dms_Specified_FinalYear,2)),0) -> 0 | D55: If multi year ABC - uses dms_Specified_FinalYear
B56: dms_Model_Span | C56: =INDEX(dms_Model_Span_List,MATCH(dms_Model,dms_Model_List)) -> 5 | D56: A result of 5 is used to signify that it is more than 1 year span
B57: dms_RYE_result | C57: =IF(dms_MultiYear_ResponseFlag="yes",dms_Specified_RYE,(IF(dms_Model_Span>1,dms_Reset_RYE,dms_CRY_RYE))) -> 2026 | D57: Nested IF - feeds into dms_RYE
B58: dms_Reset_Span | C58: =IF(dms_Reset_RYE>0,CONCATENATE(FRCP_y1," to ",FRCP_final_year),0) -> 2021-22 to 2025-26 | D58: Reset span of years as text
B59: dms_SpecifiedYear_Span | C59: =IF(dms_Specified_RYE>0,CONCATENATE(CRY," to ",dms_Specified_FinalYear),0) -> 0 | D59: Multi year ABC span of years as text
B60: dms_Header_Span | C60: =IF(dms_MultiYear_Flag=1,dms_SpecifiedYear_Span,IF(dms_Model_Span>1,dms_y1&" - "&FRCP_final_year,CRY)) -> 2019-20 - 2025-26 | D60: NESTED IF - for Sheet Headers
B61: ABC RINS THAT SPAN MULTIPLE YEARS
B62: This is a multi year ABC RIN? | C62: No
C63: =IF(dms_MultiYear_ResponseFlag="No",0,1) -> 0 | D63: dms_MultiYear_Flag | E63: This is set from the answer provided above
C64: =IF(dms_MultiYear_Flag=1,FRY,"not a Multiple year submission") -> not a Multiple year submission | D64: dms_Specified_FinalYear | E64: The result here is returned to dms_CRCP_FinalYear_Result if response to Q in C73 is "yes" and dms_MultiYear_Flag is set to 1
B65: Start year for 5.2 in Multi year ABC RINS | C65: =IFERROR(IF(dms_MultiYear_Flag=1,FRY,CRY),"not an ABC") -> not an ABC | D65: dms_0502_Inst_Year | E65: =IF(dms_MultiYear_Flag=1,FRY,CRY) | G65: For single year RINS this is CRY - multi year RINS need to start a the end of the span of years (ie. FRY)
B66: WHAT IS THE RYE?
B67: Reg Period Lengths
B68: PRCP length in years | C68: =INDEX(dms_PRCPlength_List,MATCH(dms_TradingName,dms_TradingName_List)) -> 5 | D68: dms_PRCPlength_Num | E68: =INDEX(dms_PRCPlength_List,MATCH(dms_TradingName,dms_TradingName_List))
B69: CRCP length in years | C69: =INDEX(dms_CRCPlength_List,MATCH(dms_TradingName,dms_TradingName_List)) -> 5 | D69: dms_CRCPlength_Num | E69: =INDEX(dms_CRCPlength_List,MATCH(dms_TradingName,dms_TradingName_List))
B70: FRCP length in years | C70: =INDEX(dms_FRCPlength_List,MATCH(dms_TradingName,dms_TradingName_List)) -> 5 | D70: dms_FRCPlength_Num | E70: =INDEX(dms_FRCPlength_List,MATCH(dms_TradingName,dms_TradingName_List))
B71: Single year RIN?
B72: Single Year ABC RIN ? | C72: =IF(dms_Model="EB",1,0) -> 0 | D72: dms_EB
C73: =IF(dms_Model="CA",1,0) -> 0 | D73: dms_CA | E73: =dms_SingleYear_Model
C74: =IF(dms_Model="ARR",1,0) -> 0 | D74: dms_ARR
B75: Is this a single Year ABC RIN? | C75: =IF(SUM(dms_SingleYear_Model)=1,"yes","no") -> no | D75: dms_SingleYearModel | E75: =IF(SUM(dms_SingleYear_Model)=1,"yes","no")
B76: Single Year Final Year Result | C76: =IF(AND(dms_SingleYearModel="yes",dms_MultiYear_Flag=0),CRY,0) -> 0 | D76: dms_SingleYear_FinalYear_Result | E76: =IFERROR(IF(SUM(dms_SingleYear_Model)<>0,(INDIRECT(dms_SingleYear_FinalYear_Ref)),"not a single year RIN"),"CRY not present")
B77: Multi year RIN?
B79: Multi Year Reset/Model? | C79: =IF(dms_Model_Span>1,"yes","no") -> yes
B80: Final year result for Reset/Model | C80: =IF(dms_Model_Span>1,dms_Reset_final_year,0) -> 2025-26 | D80: dms_MultiYear_FinalYear_Result
B82: Multi Year ABC RIN? | C82: =IF(dms_MultiYear_Flag=1,"yes","no") -> no | D82: dms_MultiYear_ABC_RIN
B83: Final year result for ABC multi year | C83: =IF(dms_MultiYear_Flag=1,C50,0) -> 0
B85: EB RINS
B86: Calendar Year for table 3.6 data | C86: =IFERROR(IF(dms_Segment="Transmission",dms_Cal_Year_B4_CRY,CRY),"CRY not present") -> CRY not present | D86: dms_0306_Year | E86: =IF(dms_Segment="Transmission",dms_Cal_Year_B4_CRY,CRY)
B87: CA RINS
B88: Find how many rows in tables 6.3 sustained interruptions? | E88: dms_060301_MaxRows only returns a valid value when cover sheet is attached to a CA file
C89: =IF(dms_Model<>"CA","not a CA","Is a CA") -> not a CA | E89: =IF(dms_Model<>"CA","not a CA","Is a CA")
B90: dms_060301_Avg_Duration_Sustained_Int_Values present? | C90: =IFERROR(IF(INDEX(dms_060301_Avg_Duration_Sustained_Int_Values,1,1)<>"","yes","no"),"no") -> no | D90: dms_060301_checkvalue | E90: =IFERROR(IF(INDEX(dms_060301_Avg_Duration_Sustained_Int_Values,1,1)<>"","yes","no"),"no")
C91: =IF(AND(dms_Model="CA",(dms_060301_checkvalue="no")),"error - NR not present","no errors") -> no errors | E91: =IF(AND(dms_Model="CA",(dms_060301_checkvalue="no")),"error - NR not present","no errors")
B92: Table 6.3.1 - last row reference | C92: =IFERROR(IF(dms_Model="CA",LOOKUP(2,1/(dms_060301_Avg_Duration_Sustained_Int_Values<>""),(ROW(dms_060301_Avg_Duration_Sustained_Int_Values))),"not a CA"),"6.3 not present") -> not a CA | D92: dms_060301_LastRow | E92: =IFERROR(IF(dms_Model="CA",LOOKUP(2,1/(dms_060301_Avg_Duration_Sustained_Int_Values<>""),(ROW(dms_060301_Avg_Duration_Sustained_Int_Values))),"not a CA"),"6.3 not present")
B93: Table 6.3.1 - max number rows | C93: =IFERROR(IF(dms_Model="CA",(dms_060301_LastRow-15),"not a CA"),"error") -> not a CA | D93: dms_060301_MaxRows | E93: =IFERROR(IF(dms_Model="CA",(dms_060301_LastRow-15),"not a CA"),"error")
B94: Table 6.6.3 - Public lighting repair - no. business days | C94: =INDEX(dms_663_List,MATCH(dms_TradingName,dms_TradingName_List)) -> x | D94: dms_663 | E94: =INDEX(dms_663_List,MATCH(dms_TradingName,dms_TradingName_List))
B95: ARR or RESET RINS
B96: How many rows in tables 6.1 or 6.7? (leap year?) | C96: insert dms_LeapYear NR if required | E96: 'dms_LeapYear is used to determine dms_060701_Max_Rows BUT it is only found on worksheet 6.1 or 6.7 and the date value in the cell is used to determine whether it is a leap year
B97: Is dms_LeapYear named range present? | C97: =IFERROR(IF(dms_LeapYear,"yes"),"no") -> no
B98: Table 6.7.1 - includes a leap year? | C98: =IFERROR(IF(MONTH(DATE(YEAR(dms_LeapYear),2,29))=2,"is a leap year","not a leap year"), "dms_LeapYear not present") -> dms_LeapYear not present | D98: dms_LeapYear_Result | E98: =IFERROR(IF(MONTH(DATE(YEAR(dms_LeapYear),2,29))=2,"is a leap year","not a leap year"),"dms_LeapYear not present")
B99: MaxRows if Reset and leap year | C99: =IF(dms_LeapYear_Result="is a leap year",1827,1826) -> 1826 | D99: dms_060701_Reset_MaxRows | E99: =IF(dms_LeapYear_Result="is a leap year",1827,1826) | H99: number of days present in Reset RIN table
B100: MaxRows if ARR and leap year | C100: =IF(dms_LeapYear_Result="is a leap year",366,365) -> 365 | D100: dms_060701_ARR_MaxRows | E100: =IF(dms_LeapYear_Result="is a leap year",366,365) | H100: number of days present in ARR RIN table
B101: Table 6.7.1 - Max Rows (leap year/ non leap year) | C101: =IF(dms_Model="ARR",dms_060701_ARR_MaxRows,IF(dms_Model="Reset",dms_060701_Reset_MaxRows,"not a relevant RIN type")) -> 1826 | D101: dms_060701_MaxRows | E101: =IF(dms_Model="ARR",dms_060701_ARR_MaxRows,IF(dms_Model="Reset",dms_060701_Reset_MaxRows,"not a relevant RIN type"))
B102: How many columns in 6.7? (4 or 5 feeder categories) | C102: =IF(dms_FifthFeeder_flag_NSP="NO","This NSP has only 4 feeder categories","This NSP has 5 feeder categories") -> This NSP has only 4 feeder categories
B103: Table 6.7.1 - Last column (# of feeder categories > 4) | C103: =IF(dms_FifthFeeder_flag_NSP="NO",10,12) -> 10 | D103: dms_060701_MaxCols | E103: =IF(dms_FifthFeeder_flag_NSP="NO",8,10)
B104: Table 6.7.1 - Number of offset rows | C104: =IF(dms_Model="ARR",15,9) -> 9 | D104: dms_060701_OffsetRows | E104: =IF(dms_Model="ARR",15,9)
B105: Start date for telephone answering in 6.1 or 6.7? | E105: Using 060101 as naming standard not 060701 for start dates
B106: Table 6.1.1 and 6.7.1 - Start Date as Text | C106: =IF(dms_SingleYearModel="yes",(CONCATENATE(IF(LEN(CRY)=4,"1-Jan-","1-Jul-"),LEFT(CRY,4))),(CONCATENATE(IF(LEN(PRCP_y4)=4,"1-Jan-","1-Jul-"),LEFT(PRCP_y4,4)))) -> 1-Jul-2014 | D106: dms_060101_StartDateTxt | E106: =IF(SUM(dms_SingleYear_Model)>1,(CONCATENATE(IF(LEN(CRY)=4,"1-Jan-","1-Jul-"),LEFT(CRY,4))),(CONCATENATE(IF(LEN(CRCP_y4)=4,"1-Jan-","1-Jul-"),LEFT(CRCP_y4,4))))
B107: Table 6.1.1 and 6.7.1 - Start Date as Date Value | C107: =DATEVALUE(dms_060701_StartDateTxt) -> 41821 | D107: dms_060101_StartDateVal | E107: =DATEVALUE(dms_060701_StartDateTxt)
B108: ARRs
B109: How many rows in table 6.8? | C109: insert dms_060801_StartCell NR if required | E109: dms_060801_StartCell is only found on worksheet 6.8 and is used to determine the starting date for the date range
B110: Is dms_060801_StartCell named range present? | C110: yes | E110: =IFERROR(IF((ROW(dms_060801_StartCell)-1)=1,"yes","yes"),"no")
B111: Table 6.8 - Number of offset rows | C111: 12 | D111: dms_0608_OffsetRows | E111: =IFERROR(IF(dms_Model="ARR",(ROW(dms_060801_StartCell)-1),"not an ARR"),"6.8 error")
B112: Table 6.8 - Last row | C112: 0 | D112: dms_0608_LastRow | E112: =IFERROR(IF(dms_060801_StartCell<>"",IF(dms_Model="ARR",(LOOKUP(2,1/(dms_060801_01_Values<>""),(ROW(dms_060801_01_Values)))),"not an ARR"),0),"0")
B113: Table 6.8 - MaxRows | C113: =IFERROR(IF(dms_Model="ARR",(MAX(0,dms_0608_LastRow-dms_0608_OffsetRows)),"not an ARR"),"0") -> not an ARR | D113: dms_060801_MaxRows | E113: =IFERROR(IF(dms_Model="ARR",(MAX(0,dms_0608_LastRow-dms_0608_OffsetRows)),"not an ARR"),"0")
B114: TNSP RESET RINS
B115: Table 7.9.4 only appears in TNSPs Reset RIN
B116: Table 7.9.4 - first year | C116: =LEFT(PRCP_y3,4) -> 2013 | D116: dms_070904_Start_Year | E116: =LEFT(PRCP_y3,4)
B118: MISC
B119: Distribution Determination Reference | C119: =INDEX(dms_DeterminationRef_List,MATCH(dms_TradingName,dms_TradingName_List)) -> n/a | D119: dms_DeterminationRef
B120: Public lighting NSP? | C120: =INDEX(dms_Public_Lighting_List,MATCH(dms_TradingName,dms_TradingName_List)) -> NO | D120: dms_Public_Lighting | E120: =INDEX(dms_Public_Lighting_List,MATCH(dms_TradingName,dms_TradingName_List))
B121: CBD Feeder for this business | C121: =INDEX(dms_CBD_flag,MATCH(dms_TradingName,dms_TradingName_List)) -> NO | D121: dms_CBD_flag_NSP
B122: Urban Feeder for this business | C122: =INDEX(dms_Urban_flag,MATCH(dms_TradingName,dms_TradingName_List)) -> NO | D122: dms_Urban_flag_NSP
B123: Short rural Feeder for this business | C123: =INDEX(dms_ShortRural_flag,MATCH(dms_TradingName,dms_TradingName_List)) -> NO | D123: dms_ShortRural_flag_NSP
B124: Long rural Feeder for this business | C124: =INDEX(dms_LongRural_flag,MATCH(dms_TradingName,dms_TradingName_List)) -> NO | D124: dms_LongRural_flag_NSP
B125: Fifth Feeder Category (eg. TasNetworks (D)) | C125: =INDEX(dms_FeederType_5_flag,MATCH(dms_TradingName,dms_TradingName_List)) -> NO | D125: dms_FifthFeeder_flag_NSP | E125: =INDEX(dms_FeederType_5_flag,MATCH(dms_TradingName,dms_TradingName_List))
B127: DISCARD FILES
B128: discard this record? | C128: NO | D128: dms_DISCARD | E128: If record is to be discarded from DB set this flag to YES
B130: SUBSET FILES
B131: Is this Submission File a Subset File | C131: NO | D131: dms_Partial
B134: REGULATORY YEARS FOR MULTI RYE SUBMISSIONS
B135: Multiple RYE flag | C135: NO | D135: dms_Multi_RYE_flag
C136: Manually specify RYE | D136: Named ranges to apply
C137: 2013 | D137: dms_RYE_01
C138: 2014 | D138: dms_RYE_02
C139: 2015 | D139: dms_RYE_03
C140: 2016 | D140: dms_RYE_04
C141: 2017 | D141: dms_RYE_05
C142: 2018 | D142: dms_RYE_06
C143: 2019 | D143: dms_RYE_07
C144: 2020 | D144: dms_RYE_08
C145: 2021 | D145: dms_RYE_09
